Workbook

Sheet Bodování jednotlivců
B2: HAČ 2015
B3: Mladší dívky
C4: roč. | D4: kat. | E4: škola | F4: body | G4: 40m | H4: b40 | I4: koule | J4: bK | K4: dálka | L4: bD | M4: výška | N4: bV
A5: 1. | B5: Holainová Bára | C5: 01 | D5: MD | E5: SG Ostrava | F5: =H5+J5+L5+N5 -> 2028 | G5: 5.92 | H5: =IF( AND(G5>4.5),ROUNDDOWN(74.755*(9-G5)^1.81,0),0) -> 572 | I5: 7.74 | J5: =IF( AND(I5>1.5),ROUNDDOWN(56.0211*(I5-1.5)^1.05,0),0) -> 383 | K5: 518 | L5: =IF( AND(K5>210),ROUNDDOWN(0.188807*(K5-210)^1.41,0),0) -> 609 | M5: 135 | N5: =IF( AND(M5>75),ROUNDDOWN(1.84523*(M5-75)^1.35,0),0) -> 464
A6: 2. | B6: Karásková Barbora | C6: 01 | D6: MD | E6: SSK Vítkovice | F6: =H6+J6+L6+N6 -> 1830 | G6: 6.16 | H6: =IF( AND(G6>4.5),ROUNDDOWN(74.755*(9-G6)^1.81,0),0) -> 494 | I6: 6.63 | J6: =IF( AND(I6>1.5),ROUNDDOWN(56.0211*(I6-1.5)^1.05,0),0) -> 311 | K6: 460 | L6: =IF( AND(K6>210),ROUNDDOWN(0.188807*(K6-210)^1.41,0),0) -> 454 | M6: 145 | N6: =IF( AND(M6>75),ROUNDDOWN(1.84523*(M6-75)^1.35,0),0) -> 571
A7: 3. | B7: Baroňová Markéta | C7: 02 | D7: MD | E7: ZŠ Englišova | F7: =H7+J7+L7+N7 -> 1752 | G7: 6.16 | H7: =IF( AND(G7>4.5),ROUNDDOWN(74.755*(9-G7)^1.81,0),0) -> 494 | I7: 6.43 | J7: =IF( AND(I7>1.5),ROUNDDOWN(56.0211*(I7-1.5)^1.05,0),0) -> 299 | K7: 476 | L7: =IF( AND(K7>210),ROUNDDOWN(0.188807*(K7-210)^1.41,0),0) -> 495 | M7: 135 | N7: =IF( AND(M7>75),ROUNDDOWN(1.84523*(M7-75)^1.35,0),0) -> 464
A8: 4. | B8: Pokorná Barbora | C8: 02 | D8: MD | E8: SG Ostrava | F8: =H8+J8+L8+N8 -> 1645 | G8: 6.38 | H8: =IF( AND(G8>4.5),ROUNDDOWN(74.755*(9-G8)^1.81,0),0) -> 427 | I8: 7.4 | J8: =IF( AND(I8>1.5),ROUNDDOWN(56.0211*(I8-1.5)^1.05,0),0) -> 361 | K8: 436 | L8: =IF( AND(K8>210),ROUNDDOWN(0.188807*(K8-210)^1.41,0),0) -> 393 | M8: 135 | N8: =IF( AND(M8>75),ROUNDDOWN(1.84523*(M8-75)^1.35,0),0) -> 464
A9: 5. | B9: Sobčíková Adéla | C9: 02 | D9: MD | E9: SSK Vítkovice | F9: =H9+J9+L9+N9 -> 1591 | G9: 6.46 | H9: =IF( AND(G9>4.5),ROUNDDOWN(74.755*(9-G9)^1.81,0),0) -> 404 | I9: 7.58 | J9: =IF( AND(I9>1.5),ROUNDDOWN(56.0211*(I9-1.5)^1.05,0),0) -> 372 | K9: 440 | L9: =IF( AND(K9>210),ROUNDDOWN(0.188807*(K9-210)^1.41,0),0) -> 403 | M9: 130 | N9: =IF( AND(M9>75),ROUNDDOWN(1.84523*(M9-75)^1.35,0),0) -> 412
A10: 6. | B10: Šoltýsová Aneta | C10: 02 | D10: MD | E10: ZŠ Englišova | F10: =H10+J10+L10+N10 -> 1553 | G10: 6.39 | H10: =IF( AND(G10>4.5),ROUNDDOWN(74.755*(9-G10)^1.81,0),0) -> 424 | I10: 6.96 | J10: =IF( AND(I10>1.5),ROUNDDOWN(56.0211*(I10-1.5)^1.05,0),0) -> 332 | K10: 411 | L10: =IF( AND(K10>210),ROUNDDOWN(0.188807*(K10-210)^1.41,0),0) -> 333 | M10: 135 | N10: =IF( AND(M10>75),ROUNDDOWN(1.84523*(M10-75)^1.35,0),0) -> 464
A11: 7. | B11: Mičunková Lucie | C11: 02 | D11: MD | E11: AK Olomouc | F11: =H11+J11+L11+N11 -> 1549 | G11: 5.91 | H11: =IF( AND(G11>4.5),ROUNDDOWN(74.755*(9-G11)^1.81,0),0) -> 576 | I11: 5.28 | J11: =IF( AND(I11>1.5),ROUNDDOWN(56.0211*(I11-1.5)^1.05,0),0) -> 226 | K11: 470 | L11: =IF( AND(K11>210),ROUNDDOWN(0.188807*(K11-210)^1.41,0),0) -> 479 | M11: 115 | N11: =IF( AND(M11>75),ROUNDDOWN(1.84523*(M11-75)^1.35,0),0) -> 268
A12: 8. | B12: Bruková Hana | C12: 02 | D12: MD | E12: ZŠ Třinec | F12: =H12+J12+L12+N12 -> 1369 | G12: 6.68 | H12: =IF( AND(G12>4.5),ROUNDDOWN(74.755*(9-G12)^1.81,0),0) -> 342 | I12: 8.84 | J12: =IF( AND(I12>1.5),ROUNDDOWN(56.0211*(I12-1.5)^1.05,0),0) -> 454 | K12: 378 | L12: =IF( AND(K12>210),ROUNDDOWN(0.188807*(K12-210)^1.41,0),0) -> 259 | M12: 120 | N12: =IF( AND(M12>75),ROUNDDOWN(1.84523*(M12-75)^1.35,0),0) -> 314
A13: 9. | B13: Zemanová Štěpánka | C13: 01 | D13: MD | E13: TJ Start Havířov | F13: =H13+J13+L13+N13 -> 1209 | G13: 6.54 | H13: =IF( AND(G13>4.5),ROUNDDOWN(74.755*(9-G13)^1.81,0),0) -> 381 | I13: 6.02 | J13: =IF( AND(I13>1.5),ROUNDDOWN(56.0211*(I13-1.5)^1.05,0),0) -> 273 | K13: 391 | L13: =IF( AND(K13>210),ROUNDDOWN(0.188807*(K13-210)^1.41,0),0) -> 287 | M13: 115 | N13: =IF( AND(M13>75),ROUNDDOWN(1.84523*(M13-75)^1.35,0),0) -> 268
A14: 10. | B14: Petrová Karolína | C14: 02 | D14: MD | E14: AK Olomouc | F14: =H14+J14+L14+N14 -> 1193 | G14: 6.1 | H14: =IF( AND(G14>4.5),ROUNDDOWN(74.755*(9-G14)^1.81,0),0) -> 513 | I14: 7.48 | J14: =IF( AND(I14>1.5),ROUNDDOWN(56.0211*(I14-1.5)^1.05,0),0) -> 366 | K14: 0 | L14: =IF( AND(K14>210),ROUNDDOWN(0.188807*(K14-210)^1.41,0),0) -> 0 | M14: 120 | N14: =IF( AND(M14>75),ROUNDDOWN(1.84523*(M14-75)^1.35,0),0) -> 314
A15: 11. | B15: Blažíková Kateřina | C15: 01 | D15: MD | E15: TJ Start Havířov | F15: =H15+J15+L15+N15 -> 1132 | G15: 6.67 | H15: =IF( AND(G15>4.5),ROUNDDOWN(74.755*(9-G15)^1.81,0),0) -> 345 | I15: 5.89 | J15: =IF( AND(I15>1.5),ROUNDDOWN(56.0211*(I15-1.5)^1.05,0),0) -> 264 | K15: 396 | L15: =IF( AND(K15>210),ROUNDDOWN(0.188807*(K15-210)^1.41,0),0) -> 299 | M15: 110 | N15: =IF( AND(M15>75),ROUNDDOWN(1.84523*(M15-75)^1.35,0),0) -> 224
A16: 12. | B16: Konečná Veronika | C16: 02 | D16: MD | E16: ZŠ Třinec | F16: =H16+J16+L16+N16 -> 886 | G16: 7.32 | H16: =IF( AND(G16>4.5),ROUNDDOWN(74.755*(9-G16)^1.81,0),0) -> 191 | I16: 5.4 | J16: =IF( AND(I16>1.5),ROUNDDOWN(56.0211*(I16-1.5)^1.05,0),0) -> 233 | K16: 347 | L16: =IF( AND(K16>210),ROUNDDOWN(0.188807*(K16-210)^1.41,0),0) -> 194 | M16: 115 | N16: =IF( AND(M16>75),ROUNDDOWN(1.84523*(M16-75)^1.35,0),0) -> 268
A17: 13. | D17: MD | F17: =H17+J17+L17+N17 -> 0 | H17: =IF( AND(G17>4.5),ROUNDDOWN(74.755*(9-G17)^1.81,0),0) -> 0 | J17: =IF( AND(I17>1.5),ROUNDDOWN(56.0211*(I17-1.5)^1.05,0),0) -> 0 | L17: =IF( AND(K17>210),ROUNDDOWN(0.188807*(K17-210)^1.41,0),0) -> 0 | N17: =IF( AND(M17>75),ROUNDDOWN(1.84523*(M17-75)^1.35,0),0) -> 0
A18: 14. | D18: MD | F18: 0 | H18: 0 | J18: 0 | L18: 0 | N18: 0
A19: 15. | D19: MD | F19: =H19+J19+L19+N19 -> 0 | H19: =IF( AND(G19>4.5),ROUNDDOWN(74.755*(9-G19)^1.81,0),0) -> 0 | J19: =IF( AND(I19>1.5),ROUNDDOWN(56.0211*(I19-1.5)^1.05,0),0) -> 0 | L19: =IF( AND(K19>210),ROUNDDOWN(0.188807*(K19-210)^1.41,0),0) -> 0 | N19: =IF( AND(M19>75),ROUNDDOWN(1.84523*(M19-75)^1.35,0),0) -> 0
A20: 16. | D20: MD | F20: 0 | H20: 0 | J20: 0 | L20: 0 | N20: 0
B21: Mladší hoši
C22: roč. | D22: kat. | E22: škola | F22: body | G22: 40m | H22: b40 | I22: koule | J22: bK | K22: dálka | L22: bD | M22: výška | N22: bV
A23: 1. | B23: Mautner Jan | C23: 01 | D23: MH | E23: AK Olomouc | F23: =H23+J23+L23+N23 -> 1843 | G23: 5.61 | H23: =IF( AND(G23>4.5),ROUNDDOWN(84.3421*(8.5-G23)^1.81,0),0) -> 575 | I23: 9.8 | J23: =IF( AND(I23>1.5),ROUNDDOWN(51.39*(I23-1.5)^1.05,0),0) -> 474 | K23: 548 | L23: =IF( AND(K23>220),ROUNDDOWN(0.14354*(K23-220)^1.4,0),0) -> 477 | M23: 140 | N23: =IF( AND(M23>75),ROUNDDOWN(0.8465*(M23-75)^1.42,0),0) -> 317
A24: 2. | B24: Zíka Jan | C24: 01 | D24: MH | E24: ZŠ Englišova | F24: =H24+J24+L24+N24 -> 1643 | G24: 6.07 | H24: =IF( AND(G24>4.5),ROUNDDOWN(84.3421*(8.5-G24)^1.81,0),0) -> 420 | I24: 11.67 | J24: =IF( AND(I24>1.5),ROUNDDOWN(51.39*(I24-1.5)^1.05,0),0) -> 586 | K24: 447 | L24: =IF( AND(K24>220),ROUNDDOWN(0.14354*(K24-220)^1.4,0),0) -> 285 | M24: 145 | N24: =IF( AND(M24>75),ROUNDDOWN(0.8465*(M24-75)^1.42,0),0) -> 352
A25: 3. | B25: Varaja David | C25: 01 | D25: MH | E25: SSK Vítkovice | F25: =H25+J25+L25+N25 -> 1622 | G25: 5.97 | H25: =IF( AND(G25>4.5),ROUNDDOWN(84.3421*(8.5-G25)^1.81,0),0) -> 452 | I25: 8.54 | J25: =IF( AND(I25>1.5),ROUNDDOWN(51.39*(I25-1.5)^1.05,0),0) -> 398 | K25: 508 | L25: =IF( AND(K25>220),ROUNDDOWN(0.14354*(K25-220)^1.4,0),0) -> 398 | M25: 148 | N25: =IF( AND(M25>75),ROUNDDOWN(0.8465*(M25-75)^1.42,0),0) -> 374
A26: 4. | B26: Hreňko Erik | C26: 01 | D26: MH | E26: SSK Vítkovice | F26: =H26+J26+L26+N26 -> 1581 | G26: 6.02 | H26: =IF( AND(G26>4.5),ROUNDDOWN(84.3421*(8.5-G26)^1.81,0),0) -> 436 | I26: 7.66 | J26: =IF( AND(I26>1.5),ROUNDDOWN(51.39*(I26-1.5)^1.05,0),0) -> 346 | K26: 495 | L26: =IF( AND(K26>220),ROUNDDOWN(0.14354*(K26-220)^1.4,0),0) -> 373 | M26: 155 | N26: =IF( AND(M26>75),ROUNDDOWN(0.8465*(M26-75)^1.42,0),0) -> 426
A27: 5. | B27: Pálka Viktor | C27: 02 | D27: MH | E27: TJ Start Havířov | F27: =H27+J27+L27+N27 -> 1518 | G27: 5.88 | H27: =IF( AND(G27>4.5),ROUNDDOWN(84.3421*(8.5-G27)^1.81,0),0) -> 482 | I27: 7.63 | J27: =IF( AND(I27>1.5),ROUNDDOWN(51.39*(I27-1.5)^1.05,0),0) -> 344 | K27: 514 | L27: =IF( AND(K27>220),ROUNDDOWN(0.14354*(K27-220)^1.4,0),0) -> 409 | M27: 135 | N27: =IF( AND(M27>75),ROUNDDOWN(0.8465*(M27-75)^1.42,0),0) -> 283
A28: 6. | B28: Lawson Samuel | C28: 02 | D28: MH | E28: AK Olomouc | F28: =H28+J28+L28+N28 -> 1517 | G28: 5.95 | H28: =IF( AND(G28>4.5),ROUNDDOWN(84.3421*(8.5-G28)^1.81,0),0) -> 459 | I28: 8.82 | J28: =IF( AND(I28>1.5),ROUNDDOWN(51.39*(I28-1.5)^1.05,0),0) -> 415 | K28: 488 | L28: =IF( AND(K28>220),ROUNDDOWN(0.14354*(K28-220)^1.4,0),0) -> 360 | M28: 135 | N28: =IF( AND(M28>75),ROUNDDOWN(0.8465*(M28-75)^1.42,0),0) -> 283
A29: 7. | B29: Morcinek Šimon | C29: 01 | D29: MH | E29: ZŠ Třinec | F29: =H29+J29+L29+N29 -> 1499 | G29: 6.15 | H29: =IF( AND(G29>4.5),ROUNDDOWN(84.3421*(8.5-G29)^1.81,0),0) -> 395 | I29: 8.05 | J29: =IF( AND(I29>1.5),ROUNDDOWN(51.39*(I29-1.5)^1.05,0),0) -> 369 | K29: 489 | L29: =IF( AND(K29>220),ROUNDDOWN(0.14354*(K29-220)^1.4,0),0) -> 361 | M29: 148 | N29: =IF( AND(M29>75),ROUNDDOWN(0.8465*(M29-75)^1.42,0),0) -> 374
A30: 8. | B30: Csikán Josef Jan | C30: 01 | D30: MH | E30: ZŠ Třinec | F30: =H30+J30+L30+N30 -> 1394 | G30: 6.31 | H30: =IF( AND(G30>4.5),ROUNDDOWN(84.3421*(8.5-G30)^1.81,0),0) -> 348 | I30: 10.66 | J30: =IF( AND(I30>1.5),ROUNDDOWN(51.39*(I30-1.5)^1.05,0),0) -> 525 | K30: 457 | L30: =IF( AND(K30>220),ROUNDDOWN(0.14354*(K30-220)^1.4,0),0) -> 303 | M30: 125 | N30: =IF( AND(M30>75),ROUNDDOWN(0.8465*(M30-75)^1.42,0),0) -> 218
A31: 9. | B31: Vicher Jan | C31: 01 | D31: MH | E31: SG Ostrava | F31: =H31+J31+L31+N31 -> 1313 | G31: 6.16 | H31: =IF( AND(G31>4.5),ROUNDDOWN(84.3421*(8.5-G31)^1.81,0),0) -> 392 | I31: 7.39 | J31: =IF( AND(I31>1.5),ROUNDDOWN(51.39*(I31-1.5)^1.05,0),0) -> 330 | K31: 441 | L31: =IF( AND(K31>220),ROUNDDOWN(0.14354*(K31-220)^1.4,0),0) -> 274 | M31: 140 | N31: =IF( AND(M31>75),ROUNDDOWN(0.8465*(M31-75)^1.42,0),0) -> 317
A32: 10. | B32: Vláčil Jiří | C32: 02 | D32: MH | E32: ZŠ Englišova | F32: =H32+J32+L32+N32 -> 1228 | G32: 6.25 | H32: =IF( AND(G32>4.5),ROUNDDOWN(84.3421*(8.5-G32)^1.81,0),0) -> 366 | I32: 7.28 | J32: =IF( AND(I32>1.5),ROUNDDOWN(51.39*(I32-1.5)^1.05,0),0) -> 324 | K32: 430 | L32: =IF( AND(K32>220),ROUNDDOWN(0.14354*(K32-220)^1.4,0),0) -> 255 | M32: 135 | N32: =IF( AND(M32>75),ROUNDDOWN(0.8465*(M32-75)^1.42,0),0) -> 283
A33: 11. | B33: Bukvaj Dennis | C33: 01 | D33: MH | E33: TJ Start Havířov | F33: =H33+J33+L33+N33 -> 1167 | G33: 6.08 | H33: =IF( AND(G33>4.5),ROUNDDOWN(84.3421*(8.5-G33)^1.81,0),0) -> 417 | I33: 9.69 | J33: =IF( AND(I33>1.5),ROUNDDOWN(51.39*(I33-1.5)^1.05,0),0) -> 467 | K33: 0 | L33: =IF( AND(K33>220),ROUNDDOWN(0.14354*(K33-220)^1.4,0),0) -> 0 | M33: 135 | N33: =IF( AND(M33>75),ROUNDDOWN(0.8465*(M33-75)^1.42,0),0) -> 283
A34: 12. | B34: Navrátil Šimon | C34: 03 | D34: MH | E34: SG Ostrava | F34: =H34+J34+L34+N34 -> 960 | G34: 6.32 | H34: =IF( AND(G34>4.5),ROUNDDOWN(84.3421*(8.5-G34)^1.81,0),0) -> 345 | I34: 5.57 | J34: =IF( AND(I34>1.5),ROUNDDOWN(51.39*(I34-1.5)^1.05,0),0) -> 224 | K34: 398 | L34: =IF( AND(K34>220),ROUNDDOWN(0.14354*(K34-220)^1.4,0),0) -> 203 | M34: 120 | N34: =IF( AND(M34>75),ROUNDDOWN(0.8465*(M34-75)^1.42,0),0) -> 188
A35: 13. | D35: MH | F35: =H35+J35+L35+N35 -> 0 | H35: =IF( AND(G35>4.5),ROUNDDOWN(84.3421*(8.5-G35)^1.81,0),0) -> 0 | J35: =IF( AND(I35>1.5),ROUNDDOWN(51.39*(I35-1.5)^1.05,0),0) -> 0 | L35: =IF( AND(K35>220),ROUNDDOWN(0.14354*(K35-220)^1.4,0),0) -> 0 | N35: =IF( AND(M35>75),ROUNDDOWN(0.8465*(M35-75)^1.42,0),0) -> 0
A36: 14. | D36: MH | F36: 0 | H36: 0 | J36: 0 | L36: 0 | N36: 0
A37: 15. | D37: MH | F37: 0 | H37: 0 | J37: 0 | L37: 0 | N37: 0
A38: 16. | D38: MH | F38: 0 | H38: 0 | J38: 0 | L38: 0 | N38: 0
B43: HAČ 2015
B44: Starší dívky
C45: roč. | D45: kat. | E45: škola | F45: body | G45: 40m | H45: b40 | I45: koule | J45: bK | K45: dálka | L45: bD | M45: výška | N45: bV
A46: 1. | B46: Gieselová Michaela | C46: 99 | D46: SD | E46: AK Olomouc | F46: =H46+J46+L46+N46 -> 2527 | G46: 5.81 | H46: =IF( AND(G46>4.5),ROUNDDOWN(74.755*(9-G46)^1.81,0),0) -> 610 | I46: 10.32 | J46: =IF( AND(I46>1.5),ROUNDDOWN(56.0211*(I46-1.5)^1.05,0),0) -> 550 | K46: 544 | L46: =IF( AND(K46>210),ROUNDDOWN(0.188807*(K46-210)^1.41,0),0) -> 683 | M46: 155 | N46: =IF( AND(M46>75),ROUNDDOWN(1.84523*(M46-75)^1.35,0),0) -> 684
A47: 2. | B47: Červenková Lucie | C47: 99 | D47: SD | E47: SG Ostrava | F47: =H47+J47+L47+N47 -> 2077 | G47: 6.17 | H47: =IF( AND(G47>4.5),ROUNDDOWN(74.755*(9-G47)^1.81,0),0) -> 491 | I47: 9.08 | J47: =IF( AND(I47>1.5),ROUNDDOWN(56.0211*(I47-1.5)^1.05,0),0) -> 469 | K47: 495 | L47: =IF( AND(K47>210),ROUNDDOWN(0.188807*(K47-210)^1.41,0),0) -> 546 | M47: 145 | N47: =IF( AND(M47>75),ROUNDDOWN(1.84523*(M47-75)^1.35,0),0) -> 571
A48: 3. | B48: Nováková Jana | C48: 00 | D48: SD | E48: SG Ostrava | F48: =H48+J48+L48+N48 -> 2000 | G48: 6.01 | H48: =IF( AND(G48>4.5),ROUNDDOWN(74.755*(9-G48)^1.81,0),0) -> 542 | I48: 8.89 | J48: =IF( AND(I48>1.5),ROUNDDOWN(56.0211*(I48-1.5)^1.05,0),0) -> 457 | K48: 472 | L48: =IF( AND(K48>210),ROUNDDOWN(0.188807*(K48-210)^1.41,0),0) -> 485 | M48: 140 | N48: =IF( AND(M48>75),ROUNDDOWN(1.84523*(M48-75)^1.35,0),0) -> 516
A49: 4. | B49: Hanousková Anežka | C49: 99 | D49: SD | E49: TJ Start Havířov | F49: =H49+J49+L49+N49 -> 1981 | G49: 6.03 | H49: =IF( AND(G49>4.5),ROUNDDOWN(74.755*(9-G49)^1.81,0),0) -> 536 | I49: 8.35 | J49: =IF( AND(I49>1.5),ROUNDDOWN(56.0211*(I49-1.5)^1.05,0),0) -> 422 | K49: 500 | L49: =IF( AND(K49>210),ROUNDDOWN(0.188807*(K49-210)^1.41,0),0) -> 559 | M49: 135 | N49: =IF( AND(M49>75),ROUNDDOWN(1.84523*(M49-75)^1.35,0),0) -> 464
A50: 5. | B50: Begová Barbora | C50: 00 | D50: SD | E50: AK Olomouc | F50: =H50+J50+L50+N50 -> 1891 | G50: 5.92 | H50: =IF( AND(G50>4.5),ROUNDDOWN(74.755*(9-G50)^1.81,0),0) -> 572 | I50: 7.55 | J50: =IF( AND(I50>1.5),ROUNDDOWN(56.0211*(I50-1.5)^1.05,0),0) -> 370 | K50: 452 | L50: =IF( AND(K50>210),ROUNDDOWN(0.188807*(K50-210)^1.41,0),0) -> 433 | M50: 140 | N50: =IF( AND(M50>75),ROUNDDOWN(1.84523*(M50-75)^1.35,0),0) -> 516
A51: 6. | B51: Kantorová Lucie | C51: 00 | D51: SD | E51: ZŠ Englišova | F51: =H51+J51+L51+N51 -> 1820 | G51: 6.44 | H51: =IF( AND(G51>4.5),ROUNDDOWN(74.755*(9-G51)^1.81,0),0) -> 409 | I51: 8.5 | J51: =IF( AND(I51>1.5),ROUNDDOWN(56.0211*(I51-1.5)^1.05,0),0) -> 432 | K51: 419 | L51: =IF( AND(K51>210),ROUNDDOWN(0.188807*(K51-210)^1.41,0),0) -> 352 | M51: 150 | N51: =IF( AND(M51>75),ROUNDDOWN(1.84523*(M51-75)^1.35,0),0) -> 627
A52: 7. | B52: Zvrtková Markéta | C52: 99 | D52: SD | E52: ZŠ Třinec | F52: =H52+J52+L52+N52 -> 1806 | G52: 6.34 | H52: =IF( AND(G52>4.5),ROUNDDOWN(74.755*(9-G52)^1.81,0),0) -> 439 | I52: 7.59 | J52: =IF( AND(I52>1.5),ROUNDDOWN(56.0211*(I52-1.5)^1.05,0),0) -> 373 | K52: 448 | L52: =IF( AND(K52>210),ROUNDDOWN(0.188807*(K52-210)^1.41,0),0) -> 423 | M52: 145 | N52: =IF( AND(M52>75),ROUNDDOWN(1.84523*(M52-75)^1.35,0),0) -> 571
A53: 8. | B53: Gerecká Vendula | C53: 00 | D53: SD | E53: ZŠ Englišova | F53: =H53+J53+L53+N53 -> 1670 | G53: 6.28 | H53: =IF( AND(G53>4.5),ROUNDDOWN(74.755*(9-G53)^1.81,0),0) -> 457 | I53: 6.74 | J53: =IF( AND(I53>1.5),ROUNDDOWN(56.0211*(I53-1.5)^1.05,0),0) -> 318 | K53: 430 | L53: =IF( AND(K53>210),ROUNDDOWN(0.188807*(K53-210)^1.41,0),0) -> 379 | M53: 140 | N53: =IF( AND(M53>75),ROUNDDOWN(1.84523*(M53-75)^1.35,0),0) -> 516
A54: 9. | B54: Luzarová Adéla | C54: 01 | D54: SD | E54: SSK Vítkovice | F54: =H54+J54+L54+N54 -> 1651 | G54: 6.01 | H54: =IF( AND(G54>4.5),ROUNDDOWN(74.755*(9-G54)^1.81,0),0) -> 542 | I54: 6.34 | J54: =IF( AND(I54>1.5),ROUNDDOWN(56.0211*(I54-1.5)^1.05,0),0) -> 293 | K54: 460 | L54: =IF( AND(K54>210),ROUNDDOWN(0.188807*(K54-210)^1.41,0),0) -> 454 | M54: 125 | N54: =IF( AND(M54>75),ROUNDDOWN(1.84523*(M54-75)^1.35,0),0) -> 362
A55: 10. | B55: Tahotná Markéta | C55: 99 | D55: SD | E55: ZŠ Třinec | F55: =H55+J55+L55+N55 -> 1507 | G55: 6.44 | H55: =IF( AND(G55>4.5),ROUNDDOWN(74.755*(9-G55)^1.81,0),0) -> 409 | I55: 7.35 | J55: =IF( AND(I55>1.5),ROUNDDOWN(56.0211*(I55-1.5)^1.05,0),0) -> 357 | K55: 409 | L55: =IF( AND(K55>210),ROUNDDOWN(0.188807*(K55-210)^1.41,0),0) -> 329 | M55: 130 | N55: =IF( AND(M55>75),ROUNDDOWN(1.84523*(M55-75)^1.35,0),0) -> 412
A56: 11. | B56: Höfrová Lucie | C56: 01 | D56: SD | E56: TJ Start Havířov | F56: =H56+J56+L56+N56 -> 1182 | G56: 6.43 | H56: =IF( AND(G56>4.5),ROUNDDOWN(74.755*(9-G56)^1.81,0),0) -> 412 | I56: 9.46 | J56: =IF( AND(I56>1.5),ROUNDDOWN(56.0211*(I56-1.5)^1.05,0),0) -> 494 | K56: 386 | L56: =IF( AND(K56>210),ROUNDDOWN(0.188807*(K56-210)^1.41,0),0) -> 276 | M56: 0 | N56: =IF( AND(M56>75),ROUNDDOWN(1.84523*(M56-75)^1.35,0),0) -> 0
A57: 12. | B57: Župníková Aneta | C57: 00 | D57: SD | E57: SSK Vítkovice | F57: =H57+J57+L57+N57 -> 1082 | G57: 6.54 | H57: =IF( AND(G57>4.5),ROUNDDOWN(74.755*(9-G57)^1.81,0),0) -> 381 | I57: 7.4 | J57: =IF( AND(I57>1.5),ROUNDDOWN(56.0211*(I57-1.5)^1.05,0),0) -> 361 | K57: 414 | L57: =IF( AND(K57>210),ROUNDDOWN(0.188807*(K57-210)^1.41,0),0) -> 340 | M57: 0 | N57: =IF( AND(M57>75),ROUNDDOWN(1.84523*(M57-75)^1.35,0),0) -> 0
A58: 13. | D58: SD | F58: =H58+J58+L58+N58 -> 0 | H58: =IF( AND(G58>4.5),ROUNDDOWN(74.755*(9-G58)^1.81,0),0) -> 0 | J58: =IF( AND(I58>1.5),ROUNDDOWN(56.0211*(I58-1.5)^1.05,0),0) -> 0 | L58: =IF( AND(K58>210),ROUNDDOWN(0.188807*(K58-210)^1.41,0),0) -> 0 | N58: =IF( AND(M58>75),ROUNDDOWN(1.84523*(M58-75)^1.35,0),0) -> 0
A59: 14. | D59: SD | F59: 0 | H59: 0 | J59: 0 | L59: 0 | N59: 0
A60: 15. | D60: SD | F60: =H60+J60+L60+N60 -> 0 | H60: =IF( AND(G60>4.5),ROUNDDOWN(74.755*(9-G60)^1.81,0),0) -> 0 | J60: =IF( AND(I60>1.5),ROUNDDOWN(56.0211*(I60-1.5)^1.05,0),0) -> 0 | L60: =IF( AND(K60>210),ROUNDDOWN(0.188807*(K60-210)^1.41,0),0) -> 0 | N60: =IF( AND(M60>75),ROUNDDOWN(1.84523*(M60-75)^1.35,0),0) -> 0
A61: 16. | D61: SD | F61: 0 | H61: 0 | J61: 0 | L61: 0 | N61: 0
A62: 17. | D62: SD | F62: 0 | H62: 0 | J62: 0 | L62: 0 | N62: 0
B64: Starší hoši
C65: roč. | D65: kat. | E65: škola | F65: body | G65: 40m | H65: b40 | I65: koule | J65: bK | K65: dálka | L65: bD | M65: výška | N65: bV
A66: 1. | B66: Vychodil Jaroslav | C66: 00 | D66: SH | E66: AK Olomouc | F66: =H66+J66+L66+N66 -> 2429 | G66: 5.45 | H66: =IF( AND(G66>4.5),ROUNDDOWN(84.3421*(8.5-G66)^1.81,0),0) -> 634 | I66: 11.42 | J66: =IF( AND(I66>1.5),ROUNDDOWN(51.39*(I66-1.5)^1.05,0),0) -> 571 | K66: 624 | L66: =IF( AND(K66>220),ROUNDDOWN(0.14354*(K66-220)^1.4,0),0) -> 639 | M66: 175 | N66: =IF( AND(M66>75),ROUNDDOWN(0.8465*(M66-75)^1.42,0),0) -> 585
A67: 2. | B67: Vácha Jan | C67: 99 | D67: SH | E67: TJ Start Havířov | F67: =H67+J67+L67+N67 -> 2409 | G67: 5.26 | H67: =IF( AND(G67>4.5),ROUNDDOWN(84.3421*(8.5-G67)^1.81,0),0) -> 708 | I67: 12.55 | J67: =IF( AND(I67>1.5),ROUNDDOWN(51.39*(I67-1.5)^1.05,0),0) -> 640 | K67: 605 | L67: =IF( AND(K67>220),ROUNDDOWN(0.14354*(K67-220)^1.4,0),0) -> 597 | M67: 160 | N67: =IF( AND(M67>75),ROUNDDOWN(0.8465*(M67-75)^1.42,0),0) -> 464
A68: 3. | B68: Mecner Jakub | C68: 00 | D68: SH | E68: ZŠ Englišova | F68: =H68+J68+L68+N68 -> 2378 | G68: 5.47 | H68: =IF( AND(G68>4.5),ROUNDDOWN(84.3421*(8.5-G68)^1.81,0),0) -> 627 | I68: 13.52 | J68: =IF( AND(I68>1.5),ROUNDDOWN(51.39*(I68-1.5)^1.05,0),0) -> 699 | K68: 582 | L68: =IF( AND(K68>220),ROUNDDOWN(0.14354*(K68-220)^1.4,0),0) -> 548 | M68: 165 | N68: =IF( AND(M68>75),ROUNDDOWN(0.8465*(M68-75)^1.42,0),0) -> 504
A69: 4. | B69: Pácal Vojtěch | C69: 99 | D69: SH | E69: SSK Vítkovice | F69: =H69+J69+L69+N69 -> 2305 | G69: 5.47 | H69: =IF( AND(G69>4.5),ROUNDDOWN(84.3421*(8.5-G69)^1.81,0),0) -> 627 | I69: 12.73 | J69: =IF( AND(I69>1.5),ROUNDDOWN(51.39*(I69-1.5)^1.05,0),0) -> 651 | K69: 589 | L69: =IF( AND(K69>220),ROUNDDOWN(0.14354*(K69-220)^1.4,0),0) -> 563 | M69: 160 | N69: =IF( AND(M69>75),ROUNDDOWN(0.8465*(M69-75)^1.42,0),0) -> 464
A70: 5. | B70: Bystroň Jakub | C70: 99 | D70: SH | E70: TJ Start Havířov | F70: =H70+J70+L70+N70 -> 2291 | G70: 5.26 | H70: =IF( AND(G70>4.5),ROUNDDOWN(84.3421*(8.5-G70)^1.81,0),0) -> 708 | I70: 11.17 | J70: =IF( AND(I70>1.5),ROUNDDOWN(51.39*(I70-1.5)^1.05,0),0) -> 556 | K70: 589 | L70: =IF( AND(K70>220),ROUNDDOWN(0.14354*(K70-220)^1.4,0),0) -> 563 | M70: 160 | N70: =IF( AND(M70>75),ROUNDDOWN(0.8465*(M70-75)^1.42,0),0) -> 464
A71: 6. | B71: Mužný František | C71: 99 | D71: SH | E71: AK Olomouc | F71: =H71+J71+L71+N71 -> 1836 | G71: 5.79 | H71: =IF( AND(G71>4.5),ROUNDDOWN(84.3421*(8.5-G71)^1.81,0),0) -> 512 | I71: 10.03 | J71: =IF( AND(I71>1.5),ROUNDDOWN(51.39*(I71-1.5)^1.05,0),0) -> 487 | K71: 495 | L71: =IF( AND(K71>220),ROUNDDOWN(0.14354*(K71-220)^1.4,0),0) -> 373 | M71: 160 | N71: =IF( AND(M71>75),ROUNDDOWN(0.8465*(M71-75)^1.42,0),0) -> 464
A72: 7. | B72: Kašparek Vojtěch | C72: 00 | D72: SH | E72: ZŠ Englišova | F72: =H72+J72+L72+N72 -> 1681 | G72: 5.79 | H72: =IF( AND(G72>4.5),ROUNDDOWN(84.3421*(8.5-G72)^1.81,0),0) -> 512 | I72: 9.32 | J72: =IF( AND(I72>1.5),ROUNDDOWN(51.39*(I72-1.5)^1.05,0),0) -> 445 | K72: 475 | L72: =IF( AND(K72>220),ROUNDDOWN(0.14354*(K72-220)^1.4,0),0) -> 335 | M72: 150 | N72: =IF( AND(M72>75),ROUNDDOWN(0.8465*(M72-75)^1.42,0),0) -> 389
A73: 8. | B73: Frgala Martin | C73: 99 | D73: SH | E73: ZŠ Třinec | F73: =H73+J73+L73+N73 -> 1610 | G73: 5.98 | H73: =IF( AND(G73>4.5),ROUNDDOWN(84.3421*(8.5-G73)^1.81,0),0) -> 449 | I73: 9.39 | J73: =IF( AND(I73>1.5),ROUNDDOWN(51.39*(I73-1.5)^1.05,0),0) -> 449 | K73: 488 | L73: =IF( AND(K73>220),ROUNDDOWN(0.14354*(K73-220)^1.4,0),0) -> 360 | M73: 145 | N73: =IF( AND(M73>75),ROUNDDOWN(0.8465*(M73-75)^1.42,0),0) -> 352
A74: 9. | B74: Jurásek Kryštof | C74: 99 | D74: SH | E74: ZŠ Třinec | F74: =H74+J74+L74+N74 -> 1580 | G74: 6.07 | H74: =IF( AND(G74>4.5),ROUNDDOWN(84.3421*(8.5-G74)^1.81,0),0) -> 420 | I74: 9.44 | J74: =IF( AND(I74>1.5),ROUNDDOWN(51.39*(I74-1.5)^1.05,0),0) -> 452 | K74: 486 | L74: =IF( AND(K74>220),ROUNDDOWN(0.14354*(K74-220)^1.4,0),0) -> 356 | M74: 145 | N74: =IF( AND(M74>75),ROUNDDOWN(0.8465*(M74-75)^1.42,0),0) -> 352
A75: 10. | B75: Meca Jaromír | C75: 00 | D75: SH | E75: SSK Vítkovice | F75: =H75+J75+L75+N75 -> 1458 | G75: 6.02 | H75: =IF( AND(G75>4.5),ROUNDDOWN(84.3421*(8.5-G75)^1.81,0),0) -> 436 | I75: 7.77 | J75: =IF( AND(I75>1.5),ROUNDDOWN(51.39*(I75-1.5)^1.05,0),0) -> 353 | K75: 444 | L75: =IF( AND(K75>220),ROUNDDOWN(0.14354*(K75-220)^1.4,0),0) -> 280 | M75: 150 | N75: =IF( AND(M75>75),ROUNDDOWN(0.8465*(M75-75)^1.42,0),0) -> 389
A76: 11. | B76: Pála Matěj | C76: 01 | D76: SH | E76: SG Ostrava | F76: =H76+J76+L76+N76 -> 624 | G76: 7.03 | H76: =IF( AND(G76>4.5),ROUNDDOWN(84.3421*(8.5-G76)^1.81,0),0) -> 169 | I76: 6.05 | J76: =IF( AND(I76>1.5),ROUNDDOWN(51.39*(I76-1.5)^1.05,0),0) -> 252 | K76: 398 | L76: =IF( AND(K76>220),ROUNDDOWN(0.14354*(K76-220)^1.4,0),0) -> 203 | M76: 0 | N76: =IF( AND(M76>75),ROUNDDOWN(0.8465*(M76-75)^1.42,0),0) -> 0
A77: 12. | D77: SH | F77: =H77+J77+L77+N77 -> 0 | H77: =IF( AND(G77>4.5),ROUNDDOWN(84.3421*(8.5-G77)^1.81,0),0) -> 0 | J77: =IF( AND(I77>1.5),ROUNDDOWN(51.39*(I77-1.5)^1.05,0),0) -> 0 | L77: =IF( AND(K77>220),ROUNDDOWN(0.14354*(K77-220)^1.4,0),0) -> 0 | N77: =IF( AND(M77>75),ROUNDDOWN(0.8465*(M77-75)^1.42,0),0) -> 0
A78: 13. | D78: SH | F78: 0 | H78: 0 | J78: 0 | L78: 0 | N78: 0
A79: 14. | D79: SH | F79: 0 | H79: 0 | J79: 0 | L79: 0 | N79: 0
A80: 15. | D80: SH | F80: =H80+J80+L80+N80 -> 0 | H80: =IF( AND(G80>4.5),ROUNDDOWN(84.3421*(8.5-G80)^1.81,0),0) -> 0 | J80: =IF( AND(I80>1.5),ROUNDDOWN(51.39*(I80-1.5)^1.05,0),0) -> 0 | L80: =IF( AND(K80>220),ROUNDDOWN(0.14354*(K80-220)^1.4,0),0) -> 0 | N80: =IF( AND(M80>75),ROUNDDOWN(0.8465*(M80-75)^1.42,0),0) -> 0
A81: 16. | D81: SH | F81: 0 | H81: 0 | J81: 0 | L81: 0 | N81: 0
A82: 17. | D82: SH | F82: 0 | H82: 0 | J82: 0 | L82: 0 | N82: 0
A83: 18. | D83: SH | F83: 0 | H83: 0 | J83: 0 | L83: 0 | N83: 0

Sheet výška
B1: skok vysoký | D1: HAČ 27.-28.3.2015
B3: MLADŠÍ DÍVKY | H3: MLADŠÍ HOŠI
B4: jméno | C4: roč. | D4: škola | E4: výkon | H4: jméno | I4: roč. | J4: škola | K4: výkon
A5: 1. | B5: Karásková Barbora | C5: 01 | D5: SSK Vítkovice | E5: 145 | G5: 1. | H5: Hreňko Erik | I5: 01 | J5: SSK Vítkovice | K5: 155
A6: 2. | B6: Baroňová Markéta | C6: 02 | D6: ZŠ Englišova | E6: 135 | G6: 2. | H6: Morcinek Šimon | I6: 01 | J6: ZŠ Třinec | K6: 148
A7: 3. | B7: Pokorná Barbora | C7: 02 | D7: SG Ostrava | E7: 135 | G7: 3. | H7: Varaja David | I7: 01 | J7: SSK Vítkovice | K7: 148
A8: 4. | B8: Šoltýsová Aneta | C8: 02 | D8: ZŠ Englišova | E8: 135 | G8: 4. | H8: Zíka Jan | I8: 01 | J8: ZŠ Englišova | K8: 145
A9: 5. | B9: Holainová Bára | C9: 01 | D9: SG Ostrava | E9: 135 | G9: 5. | H9: Mautner Jan | I9: 01 | J9: AK Olomouc | K9: 140
A10: 6. | B10: Sobčíková Adéla | C10: 02 | D10: SSK Vítkovice | E10: 130 | H10: Vicher Jan | I10: 01 | J10: SG Ostrava | K10: 140
A11: 7. | B11: Petrová Karolína | C11: 02 | D11: AK Olomouc | E11: 120 | G11: 7. | H11: Pálka Viktor | I11: 02 | J11: TJ Start Havířov | K11: 135
A12: 8. | B12: Bruková Hana | C12: 02 | D12: ZŠ Třinec | E12: 120 | G12: 8. | H12: Bukvaj Dennis | I12: 01 | J12: TJ Start Havířov | K12: 135
A13: 9. | B13: Zemanová Štěpánka | C13: 01 | D13: TJ Start Havířov | E13: 115 | G13: 9. | H13: Lawson Samuel | I13: 02 | J13: AK Olomouc | K13: 135
B14: Konečná Veronika | C14: 02 | D14: ZŠ Třinec | E14: 115 | H14: Vláčil Jiří | I14: 02 | J14: ZŠ Englišova | K14: 135
A15: 11. | B15: Mičunková Lucie | C15: 02 | D15: AK Olomouc | E15: 114 | G15: 11. | H15: Csikán Josef Jan | I15: 01 | J15: ZŠ Třinec | K15: 125
A16: 12. | B16: Blažíková Kateřina | C16: 01 | D16: TJ Start Havířov | E16: 110 | G16: 12. | H16: Navrátil Šimon | I16: 03 | J16: SG Ostrava | K16: 120
B22: STARŠÍ DÍVKY | H22: STARŠÍ HOŠI
B23: jméno | C23: roč. | D23: škola | E23: výkon | H23: jméno | I23: roč. | J23: škola | K23: výkon
A24: 1. | B24: Gieselová Michaela | C24: 99 | D24: AK Olomouc | E24: 155 | G24: 1. | H24: Vychodil Jaroslav | I24: 00 | J24: AK Olomouc | K24: 175
A25: 2. | B25: Kantorová Lucie | C25: 00 | D25: ZŠ Englišova | E25: 150 | G25: 2. | H25: Mecner Jakub | I25: 00 | J25: ZŠ Englišova | K25: 165
A26: 3. | B26: Zvrtková Markéta | C26: 99 | D26: ZŠ Třinec | E26: 145 | G26: 3. | H26: Mužný František | I26: 99 | J26: AK Olomouc | K26: 160
A27: 4. | B27: Červenková Lucie | C27: 99 | D27: SG Ostrava | E27: 145 | G27: 4. | H27: Pácal Vojtěch | I27: 99 | J27: SSK Vítkovice | K27: 160
A28: 5. | B28: Begová Barbora | C28: 00 | D28: AK Olomouc | E28: 140 | H28: Bystroň Jakub | I28: 99 | J28: TJ Start Havířov | K28: 160
A29: 6. | B29: Gerecká Vendula | C29: 00 | D29: ZŠ Englišova | E29: 140 | G29: 6. | H29: Vácha Jan | I29: 99 | J29: TJ Start Havířov | K29: 160
A30: 7. | B30: Nováková Jana | C30: 00 | D30: SG Ostrava | E30: 140 | G30: 7. | H30: Meca Jaromír | I30: 00 | J30: SSK Vítkovice | K30: 150
A31: 8. | B31: Hanousková Anežka | C31: 99 | D31: TJ Start Havířov | E31: 135 | G31: 8. | H31: Kašparek Vojtěch | I31: 00 | J31: ZŠ Englišova | K31: 150
A32: 9. | B32: Tahotná Markéta | C32: 99 | D32: ZŠ Třinec | E32: 130 | G32: 9. | H32: Frgala Martin | I32: 99 | J32: ZŠ Třinec | K32: 145
A33: 10. | B33: Luzarová Adéla | C33: 01 | D33: SSK Vítkovice | E33: 125 | H33: Jurásek Kryštof | I33: 99 | J33: ZŠ Třinec | K33: 145
A34: 11. | B34: Höfrová Lucie | C34: 01 | D34: TJ Start Havířov | E34: 0 | G34: 11. | H34: Pála Matěj | I34: 01 | J34: SG Ostrava | K34: 0
B35: Župníková Aneta | C35: 00 | D35: SSK Vítkovice | E35: 0

Sheet dálka
B1: dálka | D1: HAČ 27.-28.3.2015
B3: MLADŠÍ DÍVKY | H3: MLADŠÍ HOŠI
B4: jméno | C4: roč. | D4: škola | E4: výkon | H4: jméno | I4: roč. | J4: škola | K4: výkon
A5: 1. | B5: Holainová Bára | C5: 01 | D5: SG Ostrava | E5: 518 | G5: 1. | H5: Mautner Jan | I5: 01 | J5: AK Olomouc | K5: 548
A6: 2. | B6: Baroňová Markéta | C6: 02 | D6: ZŠ Englišova | E6: 476 | G6: 2. | H6: Pálka Viktor | I6: 02 | J6: TJ Start Havířov | K6: 514
A7: 3. | B7: Mičunková Lucie | C7: 02 | D7: AK Olomouc | E7: 470 | G7: 3. | H7: Varaja David | I7: 01 | J7: SSK Vítkovice | K7: 508
A8: 4. | B8: Karásková Barbora | C8: 01 | D8: SSK Vítkovice | E8: 460 | G8: 4. | H8: Hreňko Erik | I8: 01 | J8: SSK Vítkovice | K8: 495
A9: 5. | B9: Sobčíková Adéla | C9: 02 | D9: SSK Vítkovice | E9: 440 | G9: 5. | H9: Morcinek Šimon | I9: 01 | J9: ZŠ Třinec | K9: 489
A10: 6. | B10: Pokorná Barbora | C10: 02 | D10: SG Ostrava | E10: 436 | G10: 6. | H10: Lawson Samuel | I10: 02 | J10: AK Olomouc | K10: 488
A11: 7. | B11: Šoltýsová Aneta | C11: 02 | D11: ZŠ Englišova | E11: 411 | G11: 7. | H11: Csikán Josef Jan | I11: 01 | J11: ZŠ Třinec | K11: 457
A12: 8. | B12: Blažíková Kateřina | C12: 01 | D12: TJ Start Havířov | E12: 396 | G12: 8. | H12: Zíka Jan | I12: 01 | J12: ZŠ Englišova | K12: 447
A13: 9. | B13: Zemanová Štěpánka | C13: 01 | D13: TJ Start Havířov | E13: 391 | G13: 9. | H13: Vicher Jan | I13: 01 | J13: SG Ostrava | K13: 441
A14: 10. | B14: Bruková Hana | C14: 02 | D14: ZŠ Třinec | E14: 378 | G14: 10. | H14: Vláčil Jiří | I14: 02 | J14: ZŠ Englišova | K14: 430
A15: 11. | B15: Konečná Veronika | C15: 02 | D15: ZŠ Třinec | E15: 347 | G15: 11. | H15: Navrátil Šimon | I15: 03 | J15: SG Ostrava | K15: 398
A16: 12. | B16: Petrová Karolína | C16: 02 | D16: AK Olomouc | E16: 0 | G16: 12. | H16: Bukvaj Dennis | I16: 01 | J16: TJ Start Havířov | K16: 0
B23: STARŠÍ DÍVKY | H23: STARŠÍ HOŠI
B24: jméno | C24: roč. | D24: škola | E24: výkon | H24: jméno | I24: roč. | J24: škola | K24: výkon
A25: 1. | B25: Gieselová Michaela | C25: 99 | D25: AK Olomouc | E25: 544 | G25: 1. | H25: Vychodil Jaroslav | I25: 00 | J25: AK Olomouc | K25: 624
A26: 2. | B26: Hanousková Anežka | C26: 99 | D26: TJ Start Havířov | E26: 500 | G26: 2. | H26: Vácha Jan | I26: 99 | J26: TJ Start Havířov | K26: 605
A27: 3. | B27: Červenková Lucie | C27: 99 | D27: SG Ostrava | E27: 495 | G27: 3. | H27: Bystroň Jakub | I27: 99 | J27: TJ Start Havířov | K27: 589
A28: 4. | B28: Nováková Jana | C28: 00 | D28: SG Ostrava | E28: 472 | G28: 4. | H28: Pácal Vojtěch | I28: 99 | J28: SSK Vítkovice | K28: 589
A29: 5. | B29: Luzarová Adéla | C29: 01 | D29: SSK Vítkovice | E29: 460 | G29: 5. | H29: Mecner Jakub | I29: 00 | J29: ZŠ Englišova | K29: 582
A30: 6. | B30: Begová Barbora | C30: 00 | D30: AK Olomouc | E30: 452 | G30: 6. | H30: Mužný František | I30: 99 | J30: AK Olomouc | K30: 495
A31: 7. | B31: Zvrtková Markéta | C31: 99 | D31: ZŠ Třinec | E31: 448 | G31: 7. | H31: Frgala Martin | I31: 99 | J31: ZŠ Třinec | K31: 488
A32: 8. | B32: Gerecká Vendula | C32: 00 | D32: ZŠ Englišova | E32: 430 | G32: 8. | H32: Jurásek Kryštof | I32: 99 | J32: ZŠ Třinec | K32: 486
A33: 9. | B33: Kantorová Lucie | C33: 00 | D33: ZŠ Englišova | E33: 419 | G33: 9. | H33: Kašparek Vojtěch | I33: 00 | J33: ZŠ Englišova | K33: 475
A34: 10. | B34: Župníková Aneta | C34: 00 | D34: SSK Vítkovice | E34: 414 | G34: 10. | H34: Meca Jaromír | I34: 00 | J34: SSK Vítkovice | K34: 444
A35: 11. | B35: Tahotná Markéta | C35: 99 | D35: ZŠ Třinec | E35: 409 | G35: 11. | H35: Pála Matěj | I35: 01 | J35: SG Ostrava | K35: 398
A36: 12. | B36: Höfrová Lucie | C36: 01 | D36: TJ Start Havířov | E36: 386

Sheet 40m
B1: 40m | D1: HAČ 27.-28.3.2015
B3: MLADŠÍ DÍVKY | H3: MLADŠÍ HOŠI
B4: jméno | C4: roč. | D4: škola | E4: výkon | H4: jméno | I4: roč. | J4: škola | K4: výkon
A5: 1. | B5: Mičunková Lucie | C5: 02 | D5: AK Olomouc | E5: 5.91 | G5: 1. | H5: Mautner Jan | I5: 01 | J5: AK Olomouc | K5: 5.61
A6: 2. | B6: Holainová Bára | C6: 01 | D6: SG Ostrava | E6: 5.92 | G6: 2. | H6: Pálka Viktor | I6: 02 | J6: TJ Start Havířov | K6: 5.88
A7: 3. | B7: Petrová Karolína | C7: 02 | D7: AK Olomouc | E7: 6.1 | G7: 3. | H7: Lawson Samuel | I7: 02 | J7: AK Olomouc | K7: 5.95
A8: 4. | B8: Baroňová Markéta | C8: 02 | D8: ZŠ Englišova | E8: 6.16 | G8: 4. | H8: Varaja David | I8: 01 | J8: SSK Vítkovice | K8: 5.97
B9: Karásková Barbora | C9: 01 | D9: SSK Vítkovice | E9: 6.16 | G9: 5. | H9: Hreňko Erik | I9: 01 | J9: SSK Vítkovice | K9: 6.02
A10: 6. | B10: Pokorná Barbora | C10: 02 | D10: SG Ostrava | E10: 6.38 | G10: 6. | H10: Zíka Jan | I10: 01 | J10: ZŠ Englišova | K10: 6.07
A11: 7. | B11: Šoltýsová Aneta | C11: 02 | D11: ZŠ Englišova | E11: 6.39 | G11: 7. | H11: Bukvaj Dennis | I11: 01 | J11: TJ Start Havířov | K11: 6.08
A12: 8. | B12: Sobčíková Adéla | C12: 02 | D12: SSK Vítkovice | E12: 6.46 | G12: 8. | H12: Morcinek Šimon | I12: 01 | J12: ZŠ Třinec | K12: 6.15
A13: 9. | B13: Zemanová Štěpánka | C13: 01 | D13: TJ Start Havířov | E13: 6.54 | G13: 9. | H13: Vicher Jan | I13: 01 | J13: SG Ostrava | K13: 6.16
A14: 10. | B14: Blažíková Kateřina | C14: 01 | D14: TJ Start Havířov | E14: 6.67 | G14: 10. | H14: Vláčil Jiří | I14: 02 | J14: ZŠ Englišova | K14: 6.25
A15: 11. | B15: Bruková Hana | C15: 02 | D15: ZŠ Třinec | E15: 6.68 | G15: 11. | H15: Csikán Josef Jan | I15: 01 | J15: ZŠ Třinec | K15: 6.31
A16: 12. | B16: Konečná Veronika | C16: 02 | D16: ZŠ Třinec | E16: 7.32 | G16: 12. | H16: Navrátil Šimon | I16: 03 | J16: SG Ostrava | K16: 6.32
B23: STARŠÍ DÍVKY | H23: STARŠÍ HOŠI
B24: jméno | C24: roč. | D24: škola | E24: výkon | H24: jméno | I24: roč. | J24: škola | K24: výkon
A25: 1. | B25: Gieselová Michaela | C25: 99 | D25: AK Olomouc | E25: 5.81 | G25: 1. | H25: Vácha Jan | I25: 99 | J25: TJ Start Havířov | K25: 5.26
A26: 2. | B26: Begová Barbora | C26: 00 | D26: AK Olomouc | E26: 5.92 | H26: Bystroň Jakub | I26: 99 | J26: TJ Start Havířov | K26: 5.26
A27: 3. | B27: Luzarová Adéla | C27: 01 | D27: SSK Vítkovice | E27: 6.01 | G27: 3. | H27: Vychodil Jaroslav | I27: 00 | J27: AK Olomouc | K27: 5.45
B28: Nováková Jana | C28: 00 | D28: SG Ostrava | E28: 6.01 | G28: 4. | H28: Pácal Vojtěch | I28: 99 | J28: SSK Vítkovice | K28: 5.47
A29: 5. | B29: Hanousková Anežka | C29: 99 | D29: TJ Start Havířov | E29: 6.03 | H29: Mecner Jakub | I29: 00 | J29: ZŠ Englišova | K29: 5.47
A30: 6. | B30: Červenková Lucie | C30: 99 | D30: SG Ostrava | E30: 6.17 | G30: 6. | H30: Kašparek Vojtěch | I30: 00 | J30: ZŠ Englišova | K30: 5.79
A31: 7. | B31: Gerecká Vendula | C31: 00 | D31: ZŠ Englišova | E31: 6.28 | H31: Mužný František | I31: 99 | J31: AK Olomouc | K31: 5.79
A32: 8. | B32: Zvrtková Markéta | C32: 99 | D32: ZŠ Třinec | E32: 6.34 | G32: 8. | H32: Frgala Martin | I32: 99 | J32: ZŠ Třinec | K32: 5.98
A33: 9. | B33: Höfrová Lucie | C33: 01 | D33: TJ Start Havířov | E33: 6.43 | G33: 9. | H33: Meca Jaromír | I33: 00 | J33: SSK Vítkovice | K33: 6.02
A34: 10. | B34: Kantorová Lucie | C34: 00 | D34: ZŠ Englišova | E34: 6.44 | G34: 10. | H34: Jurásek Kryštof | I34: 99 | J34: ZŠ Třinec | K34: 6.07
B35: Tahotná Markéta | C35: 99 | D35: ZŠ Třinec | E35: 6.44 | G35: 11. | H35: Pála Matěj | I35: 01 | J35: SG Ostrava | K35: 7.03
A36: 12. | B36: Župníková Aneta | C36: 00 | D36: SSK Vítkovice | E36: 6.54

Sheet koule
B1: koule | D1: HAČ 27.-28.3.2015
B3: MLADŠÍ DÍVKY 3kg | H3: MLADŠÍ HOŠI 3kg
B4: jméno | C4: roč. | D4: škola | E4: výkon | H4: jméno | I4: roč. | J4: škola | K4: výkon
A5: 1. | B5: Bruková Hana | C5: 02 | D5: ZŠ Třinec | E5: 8.84 | G5: 1. | H5: Zíka Jan | I5: 01 | J5: ZŠ Englišova | K5: 11.67
A6: 2. | B6: Holainová Bára | C6: 01 | D6: SG Ostrava | E6: 7.74 | G6: 2. | H6: Csikán Josef Jan | I6: 01 | J6: ZŠ Třinec | K6: 10.66
A7: 3. | B7: Sobčíková Adéla | C7: 02 | D7: SSK Vítkovice | E7: 7.58 | G7: 3. | H7: Mautner Jan | I7: 01 | J7: AK Olomouc | K7: 9.8
A8: 4. | B8: Petrová Karolína | C8: 02 | D8: AK Olomouc | E8: 7.48 | G8: 4. | H8: Bukvaj Dennis | I8: 01 | J8: TJ Start Havířov | K8: 9.69
A9: 5. | B9: Pokorná Barbora | C9: 02 | D9: SG Ostrava | E9: 7.4 | G9: 5. | H9: Lawson Samuel | I9: 02 | J9: AK Olomouc | K9: 8.82
A10: 6. | B10: Šoltýsová Aneta | C10: 02 | D10: ZŠ Englišova | E10: 6.96 | G10: 6. | H10: Varaja David | I10: 01 | J10: SSK Vítkovice | K10: 8.54
A11: 7. | B11: Karásková Barbora | C11: 01 | D11: SSK Vítkovice | E11: 6.63 | G11: 7. | H11: Morcinek Šimon | I11: 01 | J11: ZŠ Třinec | K11: 8.05
A12: 8. | B12: Baroňová Markéta | C12: 02 | D12: ZŠ Englišova | E12: 6.43 | G12: 8. | H12: Hreňko Erik | I12: 01 | J12: SSK Vítkovice | K12: 7.66
A13: 9. | B13: Zemanová Štěpánka | C13: 01 | D13: TJ Start Havířov | E13: 6.02 | G13: 9. | H13: Pálka Viktor | I13: 02 | J13: TJ Start Havířov | K13: 7.63
A14: 10. | B14: Blažíková Kateřina | C14: 01 | D14: TJ Start Havířov | E14: 5.89 | G14: 10. | H14: Vicher Jan | I14: 01 | J14: SG Ostrava | K14: 7.39
A15: 11. | B15: Konečná Veronika | C15: 02 | D15: ZŠ Třinec | E15: 5.4 | G15: 11. | H15: Vláčil Jiří | I15: 02 | J15: ZŠ Englišova | K15: 7.28
A16: 12. | B16: Mičunková Lucie | C16: 02 | D16: AK Olomouc | E16: 5.28 | G16: 12. | H16: Navrátil Šimon | I16: 03 | J16: SG Ostrava | K16: 5.57
B22: STARŠÍ DÍVKY 3kg | H22: STARŠÍ HOŠI 4kg
B23: jméno | C23: roč. | D23: škola | E23: výkon | H23: jméno | I23: roč. | J23: škola | K23: výkon
A24: 1. | B24: Gieselová Michaela | C24: 99 | D24: AK Olomouc | E24: 10.32 | G24: 1. | H24: Mecner Jakub | I24: 00 | J24: ZŠ Englišova | K24: 13.52
A25: 2. | B25: Höfrová Lucie | C25: 01 | D25: TJ Start Havířov | E25: 9.46 | G25: 2. | H25: Pácal Vojtěch | I25: 99 | J25: SSK Vítkovice | K25: 12.73
A26: 3. | B26: Červenková Lucie | C26: 99 | D26: SG Ostrava | E26: 9.08 | G26: 3. | H26: Vácha Jan | I26: 99 | J26: TJ Start Havířov | K26: 12.55
A27: 4. | B27: Nováková Jana | C27: 00 | D27: SG Ostrava | E27: 8.89 | G27: 4. | H27: Vychodil Jaroslav | I27: 00 | J27: AK Olomouc | K27: 11.42
A28: 5. | B28: Kantorová Lucie | C28: 00 | D28: ZŠ Englišova | E28: 8.5 | G28: 5. | H28: Bystroň Jakub | I28: 99 | J28: TJ Start Havířov | K28: 11.17
A29: 6. | B29: Hanousková Anežka | C29: 99 | D29: TJ Start Havířov | E29: 8.35 | G29: 6. | H29: Mužný František | I29: 99 | J29: AK Olomouc | K29: 10.03
A30: 7. | B30: Zvrtková Markéta | C30: 99 | D30: ZŠ Třinec | E30: 7.59 | G30: 7. | H30: Jurásek Kryštof | I30: 99 | J30: ZŠ Třinec | K30: 9.44
A31: 8. | B31: Begová Barbora | C31: 00 | D31: AK Olomouc | E31: 7.55 | G31: 8. | H31: Frgala Martin | I31: 99 | J31: ZŠ Třinec | K31: 9.39
A32: 9. | B32: Župníková Aneta | C32: 00 | D32: SSK Vítkovice | E32: 7.4 | G32: 9. | H32: Kašparek Vojtěch | I32: 00 | J32: ZŠ Englišova | K32: 9.32
A33: 10. | B33: Tahotná Markéta | C33: 99 | D33: ZŠ Třinec | E33: 7.35 | G33: 10. | H33: Meca Jaromír | I33: 00 | J33: SSK Vítkovice | K33: 7.77
A34: 11. | B34: Gerecká Vendula | C34: 00 | D34: ZŠ Englišova | E34: 6.74 | G34: 11. | H34: Pála Matěj | I34: 01 | J34: SG Ostrava | K34: 6.05
A35: 12. | B35: Luzarová Adéla | C35: 01 | D35: SSK Vítkovice | E35: 6.34

Sheet Družstva
C2: Halový atletický čtyřboj 27.-28.3.2015 Havířov
A3: cel.poř. | C3: družstvo: | D3: roč. | E3: kat. | F3: body | G3: 40m | H3: b40 | I3: koule | J3: bK | K3: dálka | L3: bD | M3: výška | N3: bV
A4: 2. | B4: =SUM(F5:F12) -> 13725 | C4: ZŠ ENGLIŠOVA
C5: Šoltýsová Aneta | D5: 02 | E5: MD | F5: =H5+J5+L5+N5 -> 1553 | G5: 6.39 | H5: =IF( AND(G5>4.5),ROUNDDOWN(74.755*(9-G5)^1.81,0),0) -> 424 | I5: 6.96 | J5: =IF( AND(I5>1.5),ROUNDDOWN(56.0211*(I5-1.5)^1.05,0),0) -> 332 | K5: 411 | L5: =IF( AND(K5>210),ROUNDDOWN(0.188807*(K5-210)^1.41,0),0) -> 333 | M5: 135 | N5: =IF( AND(M5>75),ROUNDDOWN(1.84523*(M5-75)^1.35,0),0) -> 464
C6: Baroňová Markéta | D6: 02 | E6: MD | F6: 1752 | G6: 6.16 | H6: =IF( AND(G6>4.5),ROUNDDOWN(74.755*(9-G6)^1.81,0),0) -> 494 | I6: 6.43 | J6: =IF( AND(I6>1.5),ROUNDDOWN(56.0211*(I6-1.5)^1.05,0),0) -> 299 | K6: 476 | L6: =IF( AND(K6>210),ROUNDDOWN(0.188807*(K6-210)^1.41,0),0) -> 495 | M6: 135 | N6: =IF( AND(M6>75),ROUNDDOWN(1.84523*(M6-75)^1.35,0),0) -> 464
C7: Zíka Jan | D7: 01 | E7: MH | F7: 1643 | G7: 6.07 | H7: =IF( AND(G7>4.5),ROUNDDOWN(84.3421*(8.5-G7)^1.81,0),0) -> 420 | I7: 11.67 | J7: =IF( AND(I7>1.5),ROUNDDOWN(51.39*(I7-1.5)^1.05,0),0) -> 586 | K7: 447 | L7: =IF( AND(K7>220),ROUNDDOWN(0.14354*(K7-220)^1.4,0),0) -> 285 | M7: 145 | N7: =IF( AND(M7>75),ROUNDDOWN(0.8465*(M7-75)^1.42,0),0) -> 352
C8: Vláčil Jiří | D8: 02 | E8: MH | F8: 1228 | G8: 6.25 | H8: =IF( AND(G8>4.5),ROUNDDOWN(84.3421*(8.5-G8)^1.81,0),0) -> 366 | I8: 7.28 | J8: =IF( AND(I8>1.5),ROUNDDOWN(51.39*(I8-1.5)^1.05,0),0) -> 324 | K8: 430 | L8: =IF( AND(K8>220),ROUNDDOWN(0.14354*(K8-220)^1.4,0),0) -> 255 | M8: 135 | N8: =IF( AND(M8>75),ROUNDDOWN(0.8465*(M8-75)^1.42,0),0) -> 283
C9: Gerecká Vendula | D9: 00 | E9: SD | F9: 1670 | G9: 6.28 | H9: =IF( AND(G9>4.5),ROUNDDOWN(74.755*(9-G9)^1.81,0),0) -> 457 | I9: 6.74 | J9: =IF( AND(I9>1.5),ROUNDDOWN(56.0211*(I9-1.5)^1.05,0),0) -> 318 | K9: 430 | L9: =IF( AND(K9>210),ROUNDDOWN(0.188807*(K9-210)^1.41,0),0) -> 379 | M9: 140 | N9: =IF( AND(M9>75),ROUNDDOWN(1.84523*(M9-75)^1.35,0),0) -> 516
C10: Kantorová Lucie | D10: 00 | E10: SD | F10: 1820 | G10: 6.44 | H10: =IF( AND(G10>4.5),ROUNDDOWN(74.755*(9-G10)^1.81,0),0) -> 409 | I10: 8.5 | J10: =IF( AND(I10>1.5),ROUNDDOWN(56.0211*(I10-1.5)^1.05,0),0) -> 432 | K10: 419 | L10: =IF( AND(K10>210),ROUNDDOWN(0.188807*(K10-210)^1.41,0),0) -> 352 | M10: 150 | N10: =IF( AND(M10>75),ROUNDDOWN(1.84523*(M10-75)^1.35,0),0) -> 627
C11: Mecner Jakub | D11: 00 | E11: SH | F11: 2378 | G11: 5.47 | H11: =IF( AND(G11>4.5),ROUNDDOWN(84.3421*(8.5-G11)^1.81,0),0) -> 627 | I11: 13.52 | J11: =IF( AND(I11>1.5),ROUNDDOWN(51.39*(I11-1.5)^1.05,0),0) -> 699 | K11: 582 | L11: =IF( AND(K11>220),ROUNDDOWN(0.14354*(K11-220)^1.4,0),0) -> 548 | M11: 165 | N11: =IF( AND(M11>75),ROUNDDOWN(0.8465*(M11-75)^1.42,0),0) -> 504
C12: Kašparek Vojtěch | D12: 00 | E12: SH | F12: 1681 | G12: 5.79 | H12: =IF( AND(G12>4.5),ROUNDDOWN(84.3421*(8.5-G12)^1.81,0),0) -> 512 | I12: 9.32 | J12: =IF( AND(I12>1.5),ROUNDDOWN(51.39*(I12-1.5)^1.05,0),0) -> 445 | K12: 475 | L12: =IF( AND(K12>220),ROUNDDOWN(0.14354*(K12-220)^1.4,0),0) -> 335 | M12: 150 | N12: =IF( AND(M12>75),ROUNDDOWN(0.8465*(M12-75)^1.42,0),0) -> 389
A16: cel.poř. | C16: družstvo: | D16: roč. | E16: kat. | F16: body | G16: 40m | H16: b40 | I16: koule | J16: bK | K16: dálka | L16: bD | M16: výška | N16: bV
A17: 6. | B17: =SUM(F18:F25) -> 10647 | C17: SG OSTRAVA
C18: Holainová Bára | D18: 01 | E18: MD | F18: =H18+J18+L18+N18 -> 2028 | G18: 5.92 | H18: =IF( AND(G18>4.5),ROUNDDOWN(74.755*(9-G18)^1.81,0),0) -> 572 | I18: 7.74 | J18: =IF( AND(I18>1.5),ROUNDDOWN(56.0211*(I18-1.5)^1.05,0),0) -> 383 | K18: 518 | L18: =IF( AND(K18>210),ROUNDDOWN(0.188807*(K18-210)^1.41,0),0) -> 609 | M18: 135 | N18: =IF( AND(M18>75),ROUNDDOWN(1.84523*(M18-75)^1.35,0),0) -> 464
C19: Pokorná Barbora | D19: 02 | E19: MD | F19: =H19+J19+L19+N19 -> 1645 | G19: 6.38 | H19: =IF( AND(G19>4.5),ROUNDDOWN(74.755*(9-G19)^1.81,0),0) -> 427 | I19: 7.4 | J19: =IF( AND(I19>1.5),ROUNDDOWN(56.0211*(I19-1.5)^1.05,0),0) -> 361 | K19: 436 | L19: =IF( AND(K19>210),ROUNDDOWN(0.188807*(K19-210)^1.41,0),0) -> 393 | M19: 135 | N19: =IF( AND(M19>75),ROUNDDOWN(1.84523*(M19-75)^1.35,0),0) -> 464
C20: Vicher Jan | D20: 01 | E20: MH | F20: 1313 | G20: 6.16 | H20: =IF( AND(G20>4.5),ROUNDDOWN(84.3421*(8.5-G20)^1.81,0),0) -> 392 | I20: 7.39 | J20: =IF( AND(I20>1.5),ROUNDDOWN(51.39*(I20-1.5)^1.05,0),0) -> 330 | K20: 441 | L20: =IF( AND(K20>220),ROUNDDOWN(0.14354*(K20-220)^1.4,0),0) -> 274 | M20: 140 | N20: =IF( AND(M20>75),ROUNDDOWN(0.8465*(M20-75)^1.42,0),0) -> 317
C21: Navrátil Šimon | D21: 03 | E21: MH | F21: 960 | G21: 6.32 | H21: =IF( AND(G21>4.5),ROUNDDOWN(84.3421*(8.5-G21)^1.81,0),0) -> 345 | I21: 5.57 | J21: =IF( AND(I21>1.5),ROUNDDOWN(51.39*(I21-1.5)^1.05,0),0) -> 224 | K21: 398 | L21: =IF( AND(K21>220),ROUNDDOWN(0.14354*(K21-220)^1.4,0),0) -> 203 | M21: 120 | N21: =IF( AND(M21>75),ROUNDDOWN(0.8465*(M21-75)^1.42,0),0) -> 188
C22: Červenková Lucie | D22: 99 | E22: SD | F22: 2077 | G22: 6.17 | H22: =IF( AND(G22>4.5),ROUNDDOWN(74.755*(9-G22)^1.81,0),0) -> 491 | I22: 9.08 | J22: =IF( AND(I22>1.5),ROUNDDOWN(56.0211*(I22-1.5)^1.05,0),0) -> 469 | K22: 495 | L22: =IF( AND(K22>210),ROUNDDOWN(0.188807*(K22-210)^1.41,0),0) -> 546 | M22: 145 | N22: =IF( AND(M22>75),ROUNDDOWN(1.84523*(M22-75)^1.35,0),0) -> 571
C23: Nováková Jana | D23: 00 | E23: SD | F23: 2000 | G23: 6.01 | H23: =IF( AND(G23>4.5),ROUNDDOWN(74.755*(9-G23)^1.81,0),0) -> 542 | I23: 8.89 | J23: =IF( AND(I23>1.5),ROUNDDOWN(56.0211*(I23-1.5)^1.05,0),0) -> 457 | K23: 472 | L23: =IF( AND(K23>210),ROUNDDOWN(0.188807*(K23-210)^1.41,0),0) -> 485 | M23: 140 | N23: =IF( AND(M23>75),ROUNDDOWN(1.84523*(M23-75)^1.35,0),0) -> 516
C24: Pála Matěj | D24: 01 | E24: SH | F24: 624 | G24: 7.03 | H24: =IF( AND(G24>4.5),ROUNDDOWN(84.3421*(8.5-G24)^1.81,0),0) -> 169 | I24: 6.05 | J24: =IF( AND(I24>1.5),ROUNDDOWN(51.39*(I24-1.5)^1.05,0),0) -> 252 | K24: 398 | L24: =IF( AND(K24>220),ROUNDDOWN(0.14354*(K24-220)^1.4,0),0) -> 203 | M24: 0 | N24: =IF( AND(M24>75),ROUNDDOWN(0.8465*(M24-75)^1.42,0),0) -> 0
E25: SH | F25: 0 | H25: =IF( AND(G25>4.5),ROUNDDOWN(84.3421*(8.5-G25)^1.81,0),0) -> 0 | J25: =IF( AND(I25>1.5),ROUNDDOWN(51.39*(I25-1.5)^1.05,0),0) -> 0 | L25: =IF( AND(K25>220),ROUNDDOWN(0.14354*(K25-220)^1.4,0),0) -> 0 | N25: =IF( AND(M25>75),ROUNDDOWN(0.8465*(M25-75)^1.42,0),0) -> 0
A29: cel.poř. | C29: družstvo: | D29: roč. | E29: kat. | F29: body | G29: 40m | H29: b40 | I29: koule | J29: bK | K29: dálka | L29: bD | M29: výška | N29: bV
A30: 3. | B30: =SUM(F31:F38) -> 13120 | C30: SSK VÍTKOVICE
C31: Sobčíková Adéla | D31: 02 | E31: MD | F31: =H31+J31+L31+N31 -> 1591 | G31: 6.46 | H31: =IF( AND(G31>4.5),ROUNDDOWN(74.755*(9-G31)^1.81,0),0) -> 404 | I31: 7.58 | J31: =IF( AND(I31>1.5),ROUNDDOWN(56.0211*(I31-1.5)^1.05,0),0) -> 372 | K31: 440 | L31: =IF( AND(K31>210),ROUNDDOWN(0.188807*(K31-210)^1.41,0),0) -> 403 | M31: 130 | N31: =IF( AND(M31>75),ROUNDDOWN(1.84523*(M31-75)^1.35,0),0) -> 412
C32: Karásková Barbora | D32: 01 | E32: MD | F32: =H32+J32+L32+N32 -> 1830 | G32: 6.16 | H32: =IF( AND(G32>4.5),ROUNDDOWN(74.755*(9-G32)^1.81,0),0) -> 494 | I32: 6.63 | J32: =IF( AND(I32>1.5),ROUNDDOWN(56.0211*(I32-1.5)^1.05,0),0) -> 311 | K32: 460 | L32: =IF( AND(K32>210),ROUNDDOWN(0.188807*(K32-210)^1.41,0),0) -> 454 | M32: 145 | N32: =IF( AND(M32>75),ROUNDDOWN(1.84523*(M32-75)^1.35,0),0) -> 571
C33: Hreňko Erik | D33: 01 | E33: MH | F33: =H33+J33+L33+N33 -> 1581 | G33: 6.02 | H33: =IF( AND(G33>4.5),ROUNDDOWN(84.3421*(8.5-G33)^1.81,0),0) -> 436 | I33: 7.66 | J33: =IF( AND(I33>1.5),ROUNDDOWN(51.39*(I33-1.5)^1.05,0),0) -> 346 | K33: 495 | L33: =IF( AND(K33>220),ROUNDDOWN(0.14354*(K33-220)^1.4,0),0) -> 373 | M33: 155 | N33: =IF( AND(M33>75),ROUNDDOWN(0.8465*(M33-75)^1.42,0),0) -> 426
C34: Varaja David | D34: 01 | E34: MH | F34: 1622 | G34: 5.97 | H34: =IF( AND(G34>4.5),ROUNDDOWN(84.3421*(8.5-G34)^1.81,0),0) -> 452 | I34: 8.54 | J34: =IF( AND(I34>1.5),ROUNDDOWN(51.39*(I34-1.5)^1.05,0),0) -> 398 | K34: 508 | L34: =IF( AND(K34>220),ROUNDDOWN(0.14354*(K34-220)^1.4,0),0) -> 398 | M34: 148 | N34: =IF( AND(M34>75),ROUNDDOWN(0.8465*(M34-75)^1.42,0),0) -> 374
C35: Luzarova Adéla | D35: 01 | E35: SD | F35: 1651 | G35: 6.01 | H35: =IF( AND(G35>4.5),ROUNDDOWN(74.755*(9-G35)^1.81,0),0) -> 542 | I35: 6.34 | J35: =IF( AND(I35>1.5),ROUNDDOWN(56.0211*(I35-1.5)^1.05,0),0) -> 293 | K35: 460 | L35: =IF( AND(K35>210),ROUNDDOWN(0.188807*(K35-210)^1.41,0),0) -> 454 | M35: 125 | N35: =IF( AND(M35>75),ROUNDDOWN(1.84523*(M35-75)^1.35,0),0) -> 362
C36: Župníková Aneta | D36: 00 | E36: SD | F36: 1082 | G36: 6.54 | H36: =IF( AND(G36>4.5),ROUNDDOWN(74.755*(9-G36)^1.81,0),0) -> 381 | I36: 7.4 | J36: =IF( AND(I36>1.5),ROUNDDOWN(56.0211*(I36-1.5)^1.05,0),0) -> 361 | K36: 414 | L36: =IF( AND(K36>210),ROUNDDOWN(0.188807*(K36-210)^1.41,0),0) -> 340 | M36: 0 | N36: =IF( AND(M36>75),ROUNDDOWN(1.84523*(M36-75)^1.35,0),0) -> 0
C37: Meca Jaromír | D37: 00 | E37: SH | F37: 1458 | G37: 6.02 | H37: =IF( AND(G37>4.5),ROUNDDOWN(84.3421*(8.5-G37)^1.81,0),0) -> 436 | I37: 7.77 | J37: =IF( AND(I37>1.5),ROUNDDOWN(51.39*(I37-1.5)^1.05,0),0) -> 353 | K37: 444 | L37: =IF( AND(K37>220),ROUNDDOWN(0.14354*(K37-220)^1.4,0),0) -> 280 | M37: 150 | N37: =IF( AND(M37>75),ROUNDDOWN(0.8465*(M37-75)^1.42,0),0) -> 389
C38: Pácal Vojtěch | D38: 99 | E38: SH | F38: 2305 | G38: 5.47 | H38: =IF( AND(G38>4.5),ROUNDDOWN(84.3421*(8.5-G38)^1.81,0),0) -> 627 | I38: 12.73 | J38: =IF( AND(I38>1.5),ROUNDDOWN(51.39*(I38-1.5)^1.05,0),0) -> 651 | K38: 589 | L38: =IF( AND(K38>220),ROUNDDOWN(0.14354*(K38-220)^1.4,0),0) -> 563 | M38: 160 | N38: =IF( AND(M38>75),ROUNDDOWN(0.8465*(M38-75)^1.42,0),0) -> 464
A42: cel.poř. | C42: družstvo: | D42: roč. | E42: kat. | F42: body | G42: 40m | H42: b40 | I42: koule | J42: bK | K42: dálka | L42: bD | M42: výška | N42: bV
A43: 1. | B43: =SUM(F44:F51) -> 14785 | C43: AK OLOMOUC
C44: Mičunková Lucie | D44: 02 | E44: MD | F44: =H44+J44+L44+N44 -> 1549 | G44: 5.91 | H44: =IF( AND(G44>4.5),ROUNDDOWN(74.755*(9-G44)^1.81,0),0) -> 576 | I44: 5.28 | J44: =IF( AND(I44>1.5),ROUNDDOWN(56.0211*(I44-1.5)^1.05,0),0) -> 226 | K44: 470 | L44: =IF( AND(K44>210),ROUNDDOWN(0.188807*(K44-210)^1.41,0),0) -> 479 | M44: 115 | N44: =IF( AND(M44>75),ROUNDDOWN(1.84523*(M44-75)^1.35,0),0) -> 268
C45: Petrová Karolína | D45: 02 | E45: MD | F45: =H45+J45+L45+N45 -> 1193 | G45: 6.1 | H45: =IF( AND(G45>4.5),ROUNDDOWN(74.755*(9-G45)^1.81,0),0) -> 513 | I45: 7.48 | J45: =IF( AND(I45>1.5),ROUNDDOWN(56.0211*(I45-1.5)^1.05,0),0) -> 366 | K45: 0 | L45: =IF( AND(K45>210),ROUNDDOWN(0.188807*(K45-210)^1.41,0),0) -> 0 | M45: 120 | N45: =IF( AND(M45>75),ROUNDDOWN(1.84523*(M45-75)^1.35,0),0) -> 314
C46: Mautner Jan | D46: 01 | E46: MH | F46: =H46+J46+L46+N46 -> 1843 | G46: 5.61 | H46: =IF( AND(G46>4.5),ROUNDDOWN(84.3421*(8.5-G46)^1.81,0),0) -> 575 | I46: 9.8 | J46: =IF( AND(I46>1.5),ROUNDDOWN(51.39*(I46-1.5)^1.05,0),0) -> 474 | K46: 548 | L46: =IF( AND(K46>220),ROUNDDOWN(0.14354*(K46-220)^1.4,0),0) -> 477 | M46: 140 | N46: =IF( AND(M46>75),ROUNDDOWN(0.8465*(M46-75)^1.42,0),0) -> 317
C47: Lawson Samuel | D47: 02 | E47: MH | F47: 1517 | G47: 5.95 | H47: =IF( AND(G47>4.5),ROUNDDOWN(84.3421*(8.5-G47)^1.81,0),0) -> 459 | I47: 8.82 | J47: =IF( AND(I47>1.5),ROUNDDOWN(51.39*(I47-1.5)^1.05,0),0) -> 415 | K47: 488 | L47: =IF( AND(K47>220),ROUNDDOWN(0.14354*(K47-220)^1.4,0),0) -> 360 | M47: 135 | N47: =IF( AND(M47>75),ROUNDDOWN(0.8465*(M47-75)^1.42,0),0) -> 283
C48: Gieselová Michaela | D48: 99 | E48: SD | F48: 2527 | G48: 5.81 | H48: =IF( AND(G48>4.5),ROUNDDOWN(74.755*(9-G48)^1.81,0),0) -> 610 | I48: 10.32 | J48: =IF( AND(I48>1.5),ROUNDDOWN(56.0211*(I48-1.5)^1.05,0),0) -> 550 | K48: 544 | L48: =IF( AND(K48>210),ROUNDDOWN(0.188807*(K48-210)^1.41,0),0) -> 683 | M48: 155 | N48: =IF( AND(M48>75),ROUNDDOWN(1.84523*(M48-75)^1.35,0),0) -> 684
C49: Begová Barbora | D49: 00 | E49: SD | F49: 1891 | G49: 5.92 | H49: =IF( AND(G49>4.5),ROUNDDOWN(74.755*(9-G49)^1.81,0),0) -> 572 | I49: 7.55 | J49: =IF( AND(I49>1.5),ROUNDDOWN(56.0211*(I49-1.5)^1.05,0),0) -> 370 | K49: 452 | L49: =IF( AND(K49>210),ROUNDDOWN(0.188807*(K49-210)^1.41,0),0) -> 433 | M49: 140 | N49: =IF( AND(M49>75),ROUNDDOWN(1.84523*(M49-75)^1.35,0),0) -> 516
C50: Mužný František | D50: 99 | E50: SH | F50: 1836 | G50: 5.79 | H50: =IF( AND(G50>4.5),ROUNDDOWN(84.3421*(8.5-G50)^1.81,0),0) -> 512 | I50: 10.03 | J50: =IF( AND(I50>1.5),ROUNDDOWN(51.39*(I50-1.5)^1.05,0),0) -> 487 | K50: 495 | L50: =IF( AND(K50>220),ROUNDDOWN(0.14354*(K50-220)^1.4,0),0) -> 373 | M50: 160 | N50: =IF( AND(M50>75),ROUNDDOWN(0.8465*(M50-75)^1.42,0),0) -> 464
C51: Vychodil Jaroslav | D51: 00 | E51: SH | F51: 2429 | G51: 5.45 | H51: =IF( AND(G51>4.5),ROUNDDOWN(84.3421*(8.5-G51)^1.81,0),0) -> 634 | I51: 11.42 | J51: =IF( AND(I51>1.5),ROUNDDOWN(51.39*(I51-1.5)^1.05,0),0) -> 571 | K51: 624 | L51: =IF( AND(K51>220),ROUNDDOWN(0.14354*(K51-220)^1.4,0),0) -> 639 | M51: 175 | N51: =IF( AND(M51>75),ROUNDDOWN(0.8465*(M51-75)^1.42,0),0) -> 585
A55: cel.poř. | C55: družstvo: | D55: roč. | E55: kat. | F55: body | G55: 40m | H55: b40 | I55: koule | J55: bK | K55: dálka | L55: bD | M55: výška | N55: bV
A56: 4. | B56: =SUM(F57:F64) -> 12889 | C56: TJ START HAVÍŘOV
C57: Blažíková Kateřina | D57: 01 | E57: MD | F57: =H57+J57+L57+N57 -> 1132 | G57: 6.67 | H57: =IF( AND(G57>4.5),ROUNDDOWN(74.755*(9-G57)^1.81,0),0) -> 345 | I57: 5.89 | J57: =IF( AND(I57>1.5),ROUNDDOWN(56.0211*(I57-1.5)^1.05,0),0) -> 264 | K57: 396 | L57: =IF( AND(K57>210),ROUNDDOWN(0.188807*(K57-210)^1.41,0),0) -> 299 | M57: 110 | N57: =IF( AND(M57>75),ROUNDDOWN(1.84523*(M57-75)^1.35,0),0) -> 224
C58: Zemanová Štěpánka | D58: 01 | E58: MD | F58: =H58+J58+L58+N58 -> 1209 | G58: 6.54 | H58: =IF( AND(G58>4.5),ROUNDDOWN(74.755*(9-G58)^1.81,0),0) -> 381 | I58: 6.02 | J58: =IF( AND(I58>1.5),ROUNDDOWN(56.0211*(I58-1.5)^1.05,0),0) -> 273 | K58: 391 | L58: =IF( AND(K58>210),ROUNDDOWN(0.188807*(K58-210)^1.41,0),0) -> 287 | M58: 115 | N58: =IF( AND(M58>75),ROUNDDOWN(1.84523*(M58-75)^1.35,0),0) -> 268
C59: Pálka Viktor | D59: 02 | E59: MH | F59: 1518 | G59: 5.88 | H59: =IF( AND(G59>4.5),ROUNDDOWN(84.3421*(8.5-G59)^1.81,0),0) -> 482 | I59: 7.63 | J59: =IF( AND(I59>1.5),ROUNDDOWN(51.39*(I59-1.5)^1.05,0),0) -> 344 | K59: 514 | L59: =IF( AND(K59>220),ROUNDDOWN(0.14354*(K59-220)^1.4,0),0) -> 409 | M59: 135 | N59: =IF( AND(M59>75),ROUNDDOWN(0.8465*(M59-75)^1.42,0),0) -> 283
C60: Bukvaj Dennis | D60: 01 | E60: MH | F60: 1167 | G60: 6.08 | H60: =IF( AND(G60>4.5),ROUNDDOWN(84.3421*(8.5-G60)^1.81,0),0) -> 417 | I60: 9.69 | J60: =IF( AND(I60>1.5),ROUNDDOWN(51.39*(I60-1.5)^1.05,0),0) -> 467 | K60: 0 | L60: =IF( AND(K60>220),ROUNDDOWN(0.14354*(K60-220)^1.4,0),0) -> 0 | M60: 135 | N60: =IF( AND(M60>75),ROUNDDOWN(0.8465*(M60-75)^1.42,0),0) -> 283
C61: Hanousková Anežka | D61: 99 | E61: SD | F61: 1981 | G61: 6.03 | H61: =IF( AND(G61>4.5),ROUNDDOWN(74.755*(9-G61)^1.81,0),0) -> 536 | I61: 8.35 | J61: =IF( AND(I61>1.5),ROUNDDOWN(56.0211*(I61-1.5)^1.05,0),0) -> 422 | K61: 500 | L61: =IF( AND(K61>210),ROUNDDOWN(0.188807*(K61-210)^1.41,0),0) -> 559 | M61: 135 | N61: =IF( AND(M61>75),ROUNDDOWN(1.84523*(M61-75)^1.35,0),0) -> 464
C62: Höfrová Lucie | D62: 01 | E62: SD | F62: 1182 | G62: 6.43 | H62: =IF( AND(G62>4.5),ROUNDDOWN(74.755*(9-G62)^1.81,0),0) -> 412 | I62: 9.46 | J62: =IF( AND(I62>1.5),ROUNDDOWN(56.0211*(I62-1.5)^1.05,0),0) -> 494 | K62: 386 | L62: =IF( AND(K62>210),ROUNDDOWN(0.188807*(K62-210)^1.41,0),0) -> 276 | M62: 0 | N62: =IF( AND(M62>75),ROUNDDOWN(1.84523*(M62-75)^1.35,0),0) -> 0
C63: Vácha Jan | D63: 99 | E63: SH | F63: 2409 | G63: 5.26 | H63: =IF( AND(G63>4.5),ROUNDDOWN(84.3421*(8.5-G63)^1.81,0),0) -> 708 | I63: 12.55 | J63: =IF( AND(I63>1.5),ROUNDDOWN(51.39*(I63-1.5)^1.05,0),0) -> 640 | K63: 605 | L63: =IF( AND(K63>220),ROUNDDOWN(0.14354*(K63-220)^1.4,0),0) -> 597 | M63: 160 | N63: =IF( AND(M63>75),ROUNDDOWN(0.8465*(M63-75)^1.42,0),0) -> 464
C64: Bystroň Jakub | D64: 99 | E64: SH | F64: 2291 | G64: 5.26 | H64: =IF( AND(G64>4.5),ROUNDDOWN(84.3421*(8.5-G64)^1.81,0),0) -> 708 | I64: 11.17 | J64: =IF( AND(I64>1.5),ROUNDDOWN(51.39*(I64-1.5)^1.05,0),0) -> 556 | K64: 589 | L64: =IF( AND(K64>220),ROUNDDOWN(0.14354*(K64-220)^1.4,0),0) -> 563 | M64: 160 | N64: =IF( AND(M64>75),ROUNDDOWN(0.8465*(M64-75)^1.42,0),0) -> 464
A68: cel.poř. | C68: družstvo: | D68: roč. | E68: kat. | F68: body | G68: 40m | H68: b40 | I68: koule | J68: bK | K68: dálka | L68: bD | M68: výška | N68: bV
A69: 5. | B69: =SUM(F70:F77) -> 11651 | C69: ZŠ TŘINEC
C70: Bruková Hana | D70: 02 | E70: MD | F70: =H70+J70+L70+N70 -> 1369 | G70: 6.68 | H70: =IF( AND(G70>4.5),ROUNDDOWN(74.755*(9-G70)^1.81,0),0) -> 342 | I70: 8.84 | J70: =IF( AND(I70>1.5),ROUNDDOWN(56.0211*(I70-1.5)^1.05,0),0) -> 454 | K70: 378 | L70: =IF( AND(K70>210),ROUNDDOWN(0.188807*(K70-210)^1.41,0),0) -> 259 | M70: 120 | N70: =IF( AND(M70>75),ROUNDDOWN(1.84523*(M70-75)^1.35,0),0) -> 314
C71: Konečná Veronika | D71: 02 | E71: MD | F71: =H71+J71+L71+N71 -> 886 | G71: 7.32 | H71: =IF( AND(G71>4.5),ROUNDDOWN(74.755*(9-G71)^1.81,0),0) -> 191 | I71: 5.4 | J71: =IF( AND(I71>1.5),ROUNDDOWN(56.0211*(I71-1.5)^1.05,0),0) -> 233 | K71: 347 | L71: =IF( AND(K71>210),ROUNDDOWN(0.188807*(K71-210)^1.41,0),0) -> 194 | M71: 115 | N71: =IF( AND(M71>75),ROUNDDOWN(1.84523*(M71-75)^1.35,0),0) -> 268
C72: Csikán Josef Jan | D72: 01 | E72: MH | F72: =H72+J72+L72+N72 -> 1394 | G72: 6.31 | H72: =IF( AND(G72>4.5),ROUNDDOWN(84.3421*(8.5-G72)^1.81,0),0) -> 348 | I72: 10.66 | J72: =IF( AND(I72>1.5),ROUNDDOWN(51.39*(I72-1.5)^1.05,0),0) -> 525 | K72: 457 | L72: =IF( AND(K72>220),ROUNDDOWN(0.14354*(K72-220)^1.4,0),0) -> 303 | M72: 125 | N72: =IF( AND(M72>75),ROUNDDOWN(0.8465*(M72-75)^1.42,0),0) -> 218
C73: Morcinek Šimon | D73: 01 | E73: MH | F73: 1499 | G73: 6.15 | H73: =IF( AND(G73>4.5),ROUNDDOWN(84.3421*(8.5-G73)^1.81,0),0) -> 395 | I73: 8.05 | J73: =IF( AND(I73>1.5),ROUNDDOWN(51.39*(I73-1.5)^1.05,0),0) -> 369 | K73: 489 | L73: =IF( AND(K73>220),ROUNDDOWN(0.14354*(K73-220)^1.4,0),0) -> 361 | M73: 148 | N73: =IF( AND(M73>75),ROUNDDOWN(0.8465*(M73-75)^1.42,0),0) -> 374
C74: Zvrtková Markéta | D74: 99 | E74: SD | F74: 1806 | G74: 6.34 | H74: =IF( AND(G74>4.5),ROUNDDOWN(74.755*(9-G74)^1.81,0),0) -> 439 | I74: 7.59 | J74: =IF( AND(I74>1.5),ROUNDDOWN(56.0211*(I74-1.5)^1.05,0),0) -> 373 | K74: 448 | L74: =IF( AND(K74>210),ROUNDDOWN(0.188807*(K74-210)^1.41,0),0) -> 423 | M74: 145 | N74: =IF( AND(M74>75),ROUNDDOWN(1.84523*(M74-75)^1.35,0),0) -> 571
C75: Tahotná Markéta | D75: 99 | E75: SD | F75: =H75+J75+L75+N75 -> 1507 | G75: 6.44 | H75: =IF( AND(G75>4.5),ROUNDDOWN(74.755*(9-G75)^1.81,0),0) -> 409 | I75: 7.35 | J75: =IF( AND(I75>1.5),ROUNDDOWN(56.0211*(I75-1.5)^1.05,0),0) -> 357 | K75: 409 | L75: =IF( AND(K75>210),ROUNDDOWN(0.188807*(K75-210)^1.41,0),0) -> 329 | M75: 130 | N75: =IF( AND(M75>75),ROUNDDOWN(1.84523*(M75-75)^1.35,0),0) -> 412
C76: Frgala Martin | D76: 99 | E76: SH | F76: 1610 | G76: 5.98 | H76: =IF( AND(G76>4.5),ROUNDDOWN(84.3421*(8.5-G76)^1.81,0),0) -> 449 | I76: 9.39 | J76: =IF( AND(I76>1.5),ROUNDDOWN(51.39*(I76-1.5)^1.05,0),0) -> 449 | K76: 488 | L76: =IF( AND(K76>220),ROUNDDOWN(0.14354*(K76-220)^1.4,0),0) -> 360 | M76: 145 | N76: =IF( AND(M76>75),ROUNDDOWN(0.8465*(M76-75)^1.42,0),0) -> 352
C77: Jurásek Kryštof | D77: 99 | E77: SH | F77: 1580 | G77: 6.07 | H77: =IF( AND(G77>4.5),ROUNDDOWN(84.3421*(8.5-G77)^1.81,0),0) -> 420 | I77: 9.44 | J77: =IF( AND(I77>1.5),ROUNDDOWN(51.39*(I77-1.5)^1.05,0),0) -> 452 | K77: 486 | L77: =IF( AND(K77>220),ROUNDDOWN(0.14354*(K77-220)^1.4,0),0) -> 356 | M77: 145 | N77: =IF( AND(M77>75),ROUNDDOWN(0.8465*(M77-75)^1.42,0),0) -> 352
A81: cel.poř. | C81: družstvo: | D81: roč. | E81: kat. | F81: body | G81: 40m | H81: b40 | I81: koule | J81: bK | K81: dálka | L81: bD | M81: výška | N81: bV
B82: =SUM(F83:F90) -> 0
E83: MD | F83: =H83+J83+L83+N83 -> 0 | H83: =IF( AND(G83>4.5),ROUNDDOWN(74.755*(9-G83)^1.81,0),0) -> 0 | J83: =IF( AND(I83>1.5),ROUNDDOWN(56.0211*(I83-1.5)^1.05,0),0) -> 0 | L83: =IF( AND(K83>210),ROUNDDOWN(0.188807*(K83-210)^1.41,0),0) -> 0 | N83: =IF( AND(M83>75),ROUNDDOWN(1.84523*(M83-75)^1.35,0),0) -> 0
E84: MD | F84: =H84+J84+L84+N84 -> 0 | H84: =IF( AND(G84>4.5),ROUNDDOWN(74.755*(9-G84)^1.81,0),0) -> 0 | J84: =IF( AND(I84>1.5),ROUNDDOWN(56.0211*(I84-1.5)^1.05,0),0) -> 0 | L84: =IF( AND(K84>210),ROUNDDOWN(0.188807*(K84-210)^1.41,0),0) -> 0 | N84: =IF( AND(M84>75),ROUNDDOWN(1.84523*(M84-75)^1.35,0),0) -> 0
E85: MH | F85: =H85+J85+L85+N85 -> 0 | H85: =IF( AND(G85>4.5),ROUNDDOWN(84.3421*(8.5-G85)^1.81,0),0) -> 0 | J85: =IF( AND(I85>1.5),ROUNDDOWN(51.39*(I85-1.5)^1.05,0),0) -> 0 | L85: =IF( AND(K85>220),ROUNDDOWN(0.14354*(K85-220)^1.4,0),0) -> 0 | N85: =IF( AND(M85>75),ROUNDDOWN(0.8465*(M85-75)^1.42,0),0) -> 0
E86: MH | F86: 0 | H86: =IF( AND(G86>4.5),ROUNDDOWN(84.3421*(8.5-G86)^1.81,0),0) -> 0 | J86: =IF( AND(I86>1.5),ROUNDDOWN(51.39*(I86-1.5)^1.05,0),0) -> 0 | L86: =IF( AND(K86>220),ROUNDDOWN(0.14354*(K86-220)^1.4,0),0) -> 0 | N86: =IF( AND(M86>75),ROUNDDOWN(0.8465*(M86-75)^1.42,0),0) -> 0
E87: SD | F87: 0 | H87: =IF( AND(G87>4.5),ROUNDDOWN(74.755*(9-G87)^1.81,0),0) -> 0 | J87: =IF( AND(I87>1.5),ROUNDDOWN(56.0211*(I87-1.5)^1.05,0),0) -> 0 | L87: =IF( AND(K87>210),ROUNDDOWN(0.188807*(K87-210)^1.41,0),0) -> 0 | N87: =IF( AND(M87>75),ROUNDDOWN(1.84523*(M87-75)^1.35,0),0) -> 0
E88: SD | F88: 0 | H88: =IF( AND(G88>4.5),ROUNDDOWN(74.755*(9-G88)^1.81,0),0) -> 0 | J88: =IF( AND(I88>1.5),ROUNDDOWN(56.0211*(I88-1.5)^1.05,0),0) -> 0 | L88: =IF( AND(K88>210),ROUNDDOWN(0.188807*(K88-210)^1.41,0),0) -> 0 | N88: =IF( AND(M88>75),ROUNDDOWN(1.84523*(M88-75)^1.35,0),0) -> 0
E89: SH | F89: 0 | H89: =IF( AND(G89>4.5),ROUNDDOWN(84.3421*(8.5-G89)^1.81,0),0) -> 0 | J89: =IF( AND(I89>1.5),ROUNDDOWN(51.39*(I89-1.5)^1.05,0),0) -> 0 | L89: =IF( AND(K89>220),ROUNDDOWN(0.14354*(K89-220)^1.4,0),0) -> 0 | N89: =IF( AND(M89>75),ROUNDDOWN(0.8465*(M89-75)^1.42,0),0) -> 0
E90: SH | F90: 0 | H90: =IF( AND(G90>4.5),ROUNDDOWN(84.3421*(8.5-G90)^1.81,0),0) -> 0 | J90: =IF( AND(I90>1.5),ROUNDDOWN(51.39*(I90-1.5)^1.05,0),0) -> 0 | L90: =IF( AND(K90>220),ROUNDDOWN(0.14354*(K90-220)^1.4,0),0) -> 0 | N90: =IF( AND(M90>75),ROUNDDOWN(0.8465*(M90-75)^1.42,0),0) -> 0
A94: cel.poř. | C94: družstvo: | D94: roč. | E94: kat. | F94: body | G94: 40m | H94: b40 | I94: koule | J94: bK | K94: dálka | L94: bD | M94: výška | N94: bV
B95: =SUM(F96:F103) -> 0
E96: MD | F96: =H96+J96+L96+N96 -> 0 | H96: =IF( AND(G96>4.5),ROUNDDOWN(74.755*(9-G96)^1.81,0),0) -> 0 | J96: =IF( AND(I96>1.5),ROUNDDOWN(56.0211*(I96-1.5)^1.05,0),0) -> 0 | L96: =IF( AND(K96>210),ROUNDDOWN(0.188807*(K96-210)^1.41,0),0) -> 0 | N96: =IF( AND(M96>75),ROUNDDOWN(1.84523*(M96-75)^1.35,0),0) -> 0
E97: MD | F97: =H97+J97+L97+N97 -> 0 | H97: =IF( AND(G97>4.5),ROUNDDOWN(74.755*(9-G97)^1.81,0),0) -> 0 | J97: =IF( AND(I97>1.5),ROUNDDOWN(56.0211*(I97-1.5)^1.05,0),0) -> 0 | L97: =IF( AND(K97>210),ROUNDDOWN(0.188807*(K97-210)^1.41,0),0) -> 0 | N97: =IF( AND(M97>75),ROUNDDOWN(1.84523*(M97-75)^1.35,0),0) -> 0
E98: MH | F98: =H98+J98+L98+N98 -> 0 | H98: =IF( AND(G98>4.5),ROUNDDOWN(84.3421*(8.5-G98)^1.81,0),0) -> 0 | J98: =IF( AND(I98>1.5),ROUNDDOWN(51.39*(I98-1.5)^1.05,0),0) -> 0 | L98: =IF( AND(K98>220),ROUNDDOWN(0.14354*(K98-220)^1.4,0),0) -> 0 | N98: =IF( AND(M98>75),ROUNDDOWN(0.8465*(M98-75)^1.42,0),0) -> 0
E99: MH | F99: 0 | H99: =IF( AND(G99>4.5),ROUNDDOWN(84.3421*(8.5-G99)^1.81,0),0) -> 0 | J99: =IF( AND(I99>1.5),ROUNDDOWN(51.39*(I99-1.5)^1.05,0),0) -> 0 | L99: =IF( AND(K99>220),ROUNDDOWN(0.14354*(K99-220)^1.4,0),0) -> 0 | N99: =IF( AND(M99>75),ROUNDDOWN(0.8465*(M99-75)^1.42,0),0) -> 0
E100: SD | F100: 0 | H100: =IF( AND(G100>4.5),ROUNDDOWN(74.755*(9-G100)^1.81,0),0) -> 0 | J100: =IF( AND(I100>1.5),ROUNDDOWN(56.0211*(I100-1.5)^1.05,0),0) -> 0 | L100: =IF( AND(K100>210),ROUNDDOWN(0.188807*(K100-210)^1.41,0),0) -> 0 | N100: =IF( AND(M100>75),ROUNDDOWN(1.84523*(M100-75)^1.35,0),0) -> 0
E101: SD | F101: 0 | H101: =IF( AND(G101>4.5),ROUNDDOWN(74.755*(9-G101)^1.81,0),0) -> 0 | J101: =IF( AND(I101>1.5),ROUNDDOWN(56.0211*(I101-1.5)^1.05,0),0) -> 0 | L101: =IF( AND(K101>210),ROUNDDOWN(0.188807*(K101-210)^1.41,0),0) -> 0 | N101: =IF( AND(M101>75),ROUNDDOWN(1.84523*(M101-75)^1.35,0),0) -> 0
E102: SH | F102: 0 | H102: =IF( AND(G102>4.5),ROUNDDOWN(84.3421*(8.5-G102)^1.81,0),0) -> 0 | J102: =IF( AND(I102>1.5),ROUNDDOWN(51.39*(I102-1.5)^1.05,0),0) -> 0 | L102: =IF( AND(K102>220),ROUNDDOWN(0.14354*(K102-220)^1.4,0),0) -> 0 | N102: =IF( AND(M102>75),ROUNDDOWN(0.8465*(M102-75)^1.42,0),0) -> 0
E103: SH | F103: 0 | H103: =IF( AND(G103>4.5),ROUNDDOWN(84.3421*(8.5-G103)^1.81,0),0) -> 0 | J103: =IF( AND(I103>1.5),ROUNDDOWN(51.39*(I103-1.5)^1.05,0),0) -> 0 | L103: =IF( AND(K103>220),ROUNDDOWN(0.14354*(K103-220)^1.4,0),0) -> 0 | N103: =IF( AND(M103>75),ROUNDDOWN(0.8465*(M103-75)^1.42,0),0) -> 0
A107: cel.poř. | C107: družstvo: | D107: roč. | E107: kat. | F107: body | G107: 40m | H107: b40 | I107: koule | J107: bK | K107: dálka | L107: bD | M107: výška | N107: bV
A108: 5. | B108: =SUM(F109:F116) -> 9465 | C108: ZŠ PORUBSKÁ
C109: Ptašinská Kateřina Michelle | D109: 02 | E109: MD | F109: =H109+J109+L109+N109 -> 924 | G109: 6.61 | H109: =IF( AND(G109>4.5),ROUNDDOWN(74.755*(9-G109)^1.81,0),0) -> 361 | I109: 6.03 | J109: =IF( AND(I109>1.5),ROUNDDOWN(56.0211*(I109-1.5)^1.05,0),0) -> 273 | K109: 392 | L109: =IF( AND(K109>210),ROUNDDOWN(0.188807*(K109-210)^1.41,0),0) -> 290 | N109: =IF( AND(M109>75),ROUNDDOWN(1.84523*(M109-75)^1.35,0),0) -> 0
C110: Rozumová Natálie | D110: 00 | E110: MD | F110: =H110+J110+L110+N110 -> 972 | G110: 6.46 | H110: =IF( AND(G110>4.5),ROUNDDOWN(74.755*(9-G110)^1.81,0),0) -> 404 | I110: 5.96 | J110: =IF( AND(I110>1.5),ROUNDDOWN(56.0211*(I110-1.5)^1.05,0),0) -> 269 | K110: 396 | L110: =IF( AND(K110>210),ROUNDDOWN(0.188807*(K110-210)^1.41,0),0) -> 299 | N110: =IF( AND(M110>75),ROUNDDOWN(1.84523*(M110-75)^1.35,0),0) -> 0
C111: Vávra Alexandr | D111: 00 | E111: MH | F111: 1394 | G111: 5.89 | H111: =IF( AND(G111>4.5),ROUNDDOWN(84.3421*(8.5-G111)^1.81,0),0) -> 478 | I111: 10.81 | J111: =IF( AND(I111>1.5),ROUNDDOWN(51.39*(I111-1.5)^1.05,0),0) -> 534 | K111: 500 | L111: =IF( AND(K111>220),ROUNDDOWN(0.14354*(K111-220)^1.4,0),0) -> 382 | N111: =IF( AND(M111>75),ROUNDDOWN(0.8465*(M111-75)^1.42,0),0) -> 0
C112: Nováček Šimon | D112: 01 | E112: MH | F112: 1227 | G112: 6 | H112: =IF( AND(G112>4.5),ROUNDDOWN(84.3421*(8.5-G112)^1.81,0),0) -> 442 | I112: 8.97 | J112: =IF( AND(I112>1.5),ROUNDDOWN(51.39*(I112-1.5)^1.05,0),0) -> 424 | K112: 489 | L112: =IF( AND(K112>220),ROUNDDOWN(0.14354*(K112-220)^1.4,0),0) -> 361 | N112: =IF( AND(M112>75),ROUNDDOWN(0.8465*(M112-75)^1.42,0),0) -> 0
C113: Namyslová Tereza | D113: 99 | E113: SD | F113: 1190 | G113: 6.25 | H113: =IF( AND(G113>4.5),ROUNDDOWN(74.755*(9-G113)^1.81,0),0) -> 466 | I113: 7.79 | J113: =IF( AND(I113>1.5),ROUNDDOWN(56.0211*(I113-1.5)^1.05,0),0) -> 386 | K113: 413 | L113: =IF( AND(K113>210),ROUNDDOWN(0.188807*(K113-210)^1.41,0),0) -> 338 | N113: =IF( AND(M113>75),ROUNDDOWN(1.84523*(M113-75)^1.35,0),0) -> 0
C114: Rovenská Klára | D114: 99 | E114: SD | F114: 1143 | G114: 6.49 | H114: =IF( AND(G114>4.5),ROUNDDOWN(74.755*(9-G114)^1.81,0),0) -> 395 | I114: 7.07 | J114: =IF( AND(I114>1.5),ROUNDDOWN(56.0211*(I114-1.5)^1.05,0),0) -> 340 | K114: 442 | L114: =IF( AND(K114>210),ROUNDDOWN(0.188807*(K114-210)^1.41,0),0) -> 408 | N114: =IF( AND(M114>75),ROUNDDOWN(1.84523*(M114-75)^1.35,0),0) -> 0
C115: Motyčka Radim | D115: 99 | E115: SH | F115: 1194 | G115: 5.75 | H115: =IF( AND(G115>4.5),ROUNDDOWN(84.3421*(8.5-G115)^1.81,0),0) -> 526 | I115: 7.27 | J115: =IF( AND(I115>1.5),ROUNDDOWN(51.39*(I115-1.5)^1.05,0),0) -> 323 | K115: 480 | L115: =IF( AND(K115>220),ROUNDDOWN(0.14354*(K115-220)^1.4,0),0) -> 345 | N115: =IF( AND(M115>75),ROUNDDOWN(0.8465*(M115-75)^1.42,0),0) -> 0
C116: Namyslo Matěj | D116: 99 | E116: SH | F116: =H116+J116+L116+N116 -> 1421 | G116: 5.66 | H116: =IF( AND(G116>4.5),ROUNDDOWN(84.3421*(8.5-G116)^1.81,0),0) -> 557 | I116: 9.32 | J116: =IF( AND(I116>1.5),ROUNDDOWN(51.39*(I116-1.5)^1.05,0),0) -> 445 | K116: 519 | L116: =IF( AND(K116>220),ROUNDDOWN(0.14354*(K116-220)^1.4,0),0) -> 419 | N116: =IF( AND(M116>75),ROUNDDOWN(0.8465*(M116-75)^1.42,0),0) -> 0
